Workbook

Sheet Electronic Form
Q2: G&B-303(11/28/18)
D3: ONLY Put Data in Yellow Shaded Area, Spreadsheet is not Protected!
M4: Print From this Page
S5: 4-in
S6: 6-in
S7: Metric
F8: Office of Materials and Road Research | S8: English
D11: Calculation for Moisture - Density Relationships in Subgrade Soils and
D12: Aggregate Base and Shoulders, English & Metric, | M12: Proctor Mold | O12: 4-in
D13: 4" (standard) and 6" (Modified) Mold | M13: Density Units | O13: English
D14: Sample No: | I14: Curve No: | M14: Date:
M16: S. P. No:
D17: Optimum Moisture (Mt) | G17: =IFERROR(ROUND('Spline Data'!B35,1),"") ->  | I17: %
D18: Maximum Density (Dt) | G18: =IFERROR(ROUND('Spline Data'!B34,1),"") ->  | I18: kg/m3(lb/ft3)
D20: A: Wt. Wet Soil + Mold (g)
D21: B: Wt. Mold (g)
D22: C: Wt. Wet Soil (g) | H22: =IF(H21="", "", H20-H21) ->  | J22: =IF(J21="", "", J20-J21) ->  | L22: =IF(L21="", "", L20-L21) ->  | N22: =IF(N21="", "", N20-N21) ->  | P22: =IF(P21="", "", P20-P21) -> 
D23: D: Wet Density kg/m3 (lb/ft3) | H23: =IF(H21="","",IF((AND($O$12="6-in",$O$13="English")),H22*0.00220462/(1/13.3333),IF((AND($O$12="4-in",$O$13="English")),H22*0.00220462/(1/30),IF((AND($O$12="6-in",$O$13="Metric")),H22/1000/(1/(13.3333/0.028316847)),IF((AND($O$12="4-in",$O$13="Metric")),H22/1000/(1/(30/0.028316847))))))) ->  | J23: =IF(J21="","",IF((AND($O$12="6-in",$O$13="English")),J22*0.00220462/(1/13.3333),IF((AND($O$12="4-in",$O$13="English")),J22*0.00220462/(1/30),IF((AND($O$12="6-in",$O$13="Metric")),J22/1000/(1/(13.3333/0.028316847)),IF((AND($O$12="4-in",$O$13="Metric")),J22/1000/(1/(30/0.028316847))))))) ->  | L23: =IF(L21="","",IF((AND($O$12="6-in",$O$13="English")),L22*0.00220462/(1/13.3333),IF((AND($O$12="4-in",$O$13="English")),L22*0.00220462/(1/30),IF((AND($O$12="6-in",$O$13="Metric")),L22/1000/(1/(13.3333/0.028316847)),IF((AND($O$12="4-in",$O$13="Metric")),L22/1000/(1/(30/0.028316847))))))) ->  | N23: =IF(N21="","",IF((AND($O$12="6-in",$O$13="English")),N22*0.00220462/(1/13.3333),IF((AND($O$12="4-in",$O$13="English")),N22*0.00220462/(1/30),IF((AND($O$12="6-in",$O$13="Metric")),N22/1000/(1/(13.3333/0.028316847)),IF((AND($O$12="4-in",$O$13="Metric")),N22/1000/(1/(30/0.028316847))))))) ->  | P23: =IF(P21="","",IF((AND($O$12="6-in",$O$13="English")),P22*0.00220462/(1/13.3333),IF((AND($O$12="4-in",$O$13="English")),P22*0.00220462/(1/30),IF((AND($O$12="6-in",$O$13="Metric")),P22/1000/(1/(13.3333/0.028316847)),IF((AND($O$12="4-in",$O$13="Metric")),P22/1000/(1/(30/0.028316847))))))) -> 
D24: - Burner Method -
D25: E: Wt. Wet Soil + Pan (g)
D26: F: Wt. Dry Soil + Pan (g)
D27: G: Wt Moisture (g) | H27: =IF(H25="", "", H25-H26) ->  | J27: =IF(J25="", "", J25-J26) ->  | L27: =IF(L25="", "", L25-L26) ->  | N27: =IF(N25="", "", N25-N26) ->  | P27: =IF(P25="", "", P25-P26) -> 
D28: H: Wt Pan (g)
D29: I: Wt. Dry Soil (g) | H29: =IF(H25="", "",H26-H28) ->  | J29: =IF(J25="", "",J26-J28) ->  | L29: =IF(L25="", "",L26-L28) ->  | N29: =IF(N25="", "",N26-N28) ->  | P29: =IF(P25="", "",P26-P28) -> 
D30: - Speedy Method -
D31: Sample Size [Note that input for % Wet Moisture (for Row J directly below) is dependant upon the sample size and the Speedy Dial Reading, see procedure in G&B Manual section 5-692.245]
D32: J: % Moisture - Wet Wt.
D33: K: % Moisture - Dry Wt. | H33: =IF(AND(OR(H29=0,H29=""),OR(H32=0,H32="")),"",IF(H20="", "", IF(H27="",(H32*100/(100-H32)),((H27/H29)*100)))) ->  | J33: =IF(AND(OR(J29=0,J29=""),OR(J32=0,J32="")),"",IF(J20="", "", IF(J27="",(J32*100/(100-J32)),((J27/J29)*100)))) ->  | L33: =IF(AND(OR(L29=0,L29=""),OR(L32=0,L32="")),"",IF(L20="", "", IF(L27="",(L32*100/(100-L32)),((L27/L29)*100)))) ->  | N33: =IF(AND(OR(N29=0,N29=""),OR(N32=0,N32="")),"",IF(N20="", "", IF(N27="",(N32*100/(100-N32)),((N27/N29)*100)))) ->  | P33: =IF(AND(OR(P29=0,P29=""),OR(P32=0,P32="")),"",IF(P20="", "", IF(P27="",(P32*100/(100-P32)),((P27/P29)*100)))) -> 
D34: L: Dry Density kg/m3 (lb/ft3) | H34: =IF(H33="","",H23/(100+H33)*100) ->  | J34: =IF(J33="","",J23/(100+J33)*100) ->  | L34: =IF(L33="","",L23/(100+L33)*100) ->  | N34: =IF(N33="","",N23/(100+N33)*100) ->  | P34: =IF(P33="","",P23/(100+P33)*100) -> 
D35: Calculations: C= A-B | L35: See Grading and Base Manual 5-692.200-Figure 10.
D36: D= (1059.43)C (Metric) or D=(30)C (English), for 4" Mold
D37: D= (470.861)C (Metric) or D=(13.3333)C (English), for 6" Mold
D38: G=E-F; I=F-H
D39: K=G/Ix100 or K=J/(I-J/100) L=Dx100/(100+K)
D40: Remarks: % Ret. 4.75 mm (#4) | J40: Mf | M40: Df
D42: Soils Class
J44: Tester
D45: cc:Project File

Sheet Blank
Q2: G&B-303(2/7/2012)
D3: TP-24587-01
F5: Minnesota Department of Transportation
S7: Metric
F8: Office of Materials and Road Research | S8: English
D11: Calculation for Moisture - Density Relationships in Subgrade Soils and
D12: Aggregate Base and Shoulders
D14: Sample No: | I14: Curve No: | M14: Date:
M16: S. P. No:
D17: Optimum Moisture (Mt) | I17: %
D18: Maximum Density (Dt) | I18: kg/m3 (lb/ft3)
D20: A - Wt. Wet Soil + Mold
D21: B -Wt. Mold
D22: C - Wt. Wet Soil
D23: D - Wet Density kg/m3 (lb/ft3)
D24: - Burner Method -
D25: E - Wt. Wet Soil + Pan
D26: F - Wt. Dry Soil + Pan
D27: G - Wt Moisture
D28: H - Wt Pan
D29: I - Wt. Dry Soil
D30: - Speedy Method -
D31: Dial Reading - Sample Size
D32: J - % Moisture - Wet Wt.
D33: K - % Moisture - Dry Wt.
D34: L - Dry Density kg/m3 (lb/ft3)
D35: Calculations: C= A-B:, D= (1059.43)C (M) or D=(30)C (E) | L35: See Grading and Base Manual Fig 5 5-692.222 (M)
D36: G=E - F; I=F-H | L36: See Grading and Base Manual Fig 5 5-692.222 (E)
D37: K=G/Ix100 or K=J/(I-J/100) L=(D/100+K)100
D39: Remarks; % Ret. 4.75 mm (#4) | J39: Mf | M39: Df
D41: Soils Class
J43: Tester
D44: cc:Project File

Sheet Spline Data
A1: Calculated Points | J1: Y-Value | K1: X-Value | L1: Equation #
B2: 1 | C2: 2 | D2: 3 | E2: 4 | F2: 5 | I2: Initialize | J2: =B4 ->  | K2: =B3 ->  | L2: =IF($G$3="4Pt Proctor",IF(K2<$C$9,1,IF(K2<$D$9,2,IF(K2<$E$9,3))),IF(K2<$C$9,4,IF(K2<$D$9,5,IF(K2<$E$9,6,7)))) ->  | N2: =IF(G3="4Pt Proctor",(E9-B9)/2000,(F9-B9)/2000) -> 
A3: ='Electronic Form'!D33 -> K: % Moisture - Dry Wt. | B3: =ROUND('Electronic Form'!H33,2) ->  | C3: =ROUND('Electronic Form'!J33,2) ->  | D3: =ROUND('Electronic Form'!L33,2) ->  | E3: =ROUND('Electronic Form'!N33,2) ->  | F3: =ROUND('Electronic Form'!P33,2) ->  | G3: =IF(ISNUMBER(F3),"5Pt Proctor","4Pt Proctor") -> 4Pt Proctor | J3: =IF($G$3="4Pt Proctor",IF(K3<$C$9,$B$23+$C$23*(K3-$B$9)+$D$23*(K3-$B$9)^2+$E$23*(K3-$B$9)^3,IF(K3<$D$9,$B$24+$C$24*(K3-$C$9)+$D$24*(K3-$C$9)^2+$E$24*(K3-$C$9)^3,IF(K3<$E$9,$B$25+$C$25*(K3-$D$9)+$D$25*(K3-$D$9)^2+$E$25*(K3-$D$9)^3))),IF(K3<$C$9,$B$44+$C$44*(K3-$B$9)+$D$44*(K3-$B$9)^2+$E$44*(K3-$B$9)^3,IF(K3<$D$9,$B$45+$C$45*(K3-$C$9)+$D$45*(K3-$C$9)^2+$E$45*(K3-$C$9)^3,IF(K3<$E$9,$B$46+$C$46*(K3-$D$9)+$D$46*(K3-$D$9)^2+$E$46*(K3-$D$9)^3,$B$47+$C$47*(K3-$E$9)+$D$47*(K3-$E$9)^2+$E$47*(K3-$E$9)^3)))) ->  | K3: =IF($G$3="4Pt Proctor",IF(K2<$E$9,K2+$N$2,""),IF(K2<$F$9,K2+$N$2,"")) ->  | L3: =IF($G$3="4Pt Proctor",IF(K3<$C$9,1,IF(K3<$D$9,2,IF(K3<$E$9,3))),IF(K3<$C$9,4,IF(K3<$D$9,5,IF(K3<$E$9,6,7)))) -> 
A4: ='Electronic Form'!D34 -> L: Dry Density kg/m3 (lb/ft3) | B4: =ROUND('Electronic Form'!H34,1) ->  | C4: =ROUND('Electronic Form'!J34,1) ->  | D4: =ROUND('Electronic Form'!L34,1) ->  | E4: =ROUND('Electronic Form'!N34,1) ->  | F4: =ROUND('Electronic Form'!P34,1) ->  | J4: =IF($G$3="4Pt Proctor",IF(K4<$C$9,$B$23+$C$23*(K4-$B$9)+$D$23*(K4-$B$9)^2+$E$23*(K4-$B$9)^3,IF(K4<$D$9,$B$24+$C$24*(K4-$C$9)+$D$24*(K4-$C$9)^2+$E$24*(K4-$C$9)^3,IF(K4<$E$9,$B$25+$C$25*(K4-$D$9)+$D$25*(K4-$D$9)^2+$E$25*(K4-$D$9)^3))),IF(K4<$C$9,$B$44+$C$44*(K4-$B$9)+$D$44*(K4-$B$9)^2+$E$44*(K4-$B$9)^3,IF(K4<$D$9,$B$45+$C$45*(K4-$C$9)+$D$45*(K4-$C$9)^2+$E$45*(K4-$C$9)^3,IF(K4<$E$9,$B$46+$C$46*(K4-$D$9)+$D$46*(K4-$D$9)^2+$E$46*(K4-$D$9)^3,$B$47+$C$47*(K4-$E$9)+$D$47*(K4-$E$9)^2+$E$47*(K4-$E$9)^3)))) ->  | K4: =IF($G$3="4Pt Proctor",IF(K3<$E$9,K3+$N$2,""),IF(K3<$F$9,K3+$N$2,"")) ->  | L4: =IF($G$3="4Pt Proctor",IF(K4<$C$9,1,IF(K4<$D$9,2,IF(K4<$E$9,3))),IF(K4<$C$9,4,IF(K4<$D$9,5,IF(K4<$E$9,6,7)))) -> 
A7: Ordered Points
B8: 1 | C8: 2 | D8: 3 | E8: 4 | F8: 5
A9: X Values | B9: =IF($G$3="4Pt Proctor",SMALL($B$3:$E$3,B8),SMALL($B$3:$F$3,B8)) ->  | C9: =IF($G$3="4Pt Proctor",SMALL($B$3:$E$3,C8),SMALL($B$3:$F$3,C8)) ->  | F9: =IF($G$3="4Pt Proctor","",SMALL($B$3:$F$3,F8)) -> 
A10: Y Values | B10: =HLOOKUP(B9,$B$3:$F$4,2,FALSE) ->  | C10: =HLOOKUP(C9,$B$3:$F$4,2,FALSE) ->  | F10: =IF($G$3="4Pt Proctor","",HLOOKUP(F9,$B$3:$F$4,2,FALSE)) -> 
A11: hi = xi+1 − xi for i = 0, 1, 2, . . . | B11: =C9-B9 ->  | C11: =D9-C9 ->  | E11: =IF($G$3="4Pt Proctor","",F9-E9) -> 
A13: Number of logical points: | B13: =IF(ISNUMBER(E11),5,IF(ISNUMBER(D11),4,IF(ISNUMBER(C11),3))) -> FALSE
A14: X Range: | B14: =ROUNDDOWN(B9,0) ->  | C14: =ROUNDUP(MAX(B9:F9),0) -> 
B16: Matrix A | F16: Matrix m | G16: Matrix r
A17: 4-Point Matrix Calculations | B17: 1 | C17: 0 | D17: 0 | E17: 0 | F17: =MMULT(MINVERSE(A_4Pt),R_4Pt) ->  | G17: 0
B18: =B11 ->  | C18: =2*(B11+C11) ->  | D18: =C11 ->  | E18: 0 | G18: =6*(((D10-C10)/C11)-((C10-B10)/B11)) -> 
B19: 0 | C19: =C11 ->  | D19: =2*(C11+D11) ->  | E19: =D11 ->  | G19: =6*(((E10-D10)/D11)-((D10-C10)/C11)) -> 
B20: 0 | C20: 0 | D20: 0 | E20: 1 | G20: 0
A22: 4-Point Coefficients | B22: a | C22: b | D22: c | E22: d
A23: Part 1 | B23: =B10 ->  | C23: =((C10-B10)/B11)-(B11/2)*F17-((B11/6)*(F18-F17)) ->  | D23: =F17/2 ->  | E23: =(F18-F17)/(6*B11) -> 
A24: Part 2 | B24: =C10 ->  | C24: =((D10-C10)/C11)-(C11/2)*F18-((C11/6)*(F19-F18)) ->  | D24: =F18/2 ->  | E24: =(F19-F18)/(6*C11) -> 
A25: Part 3 | B25: =D10 ->  | C25: =((E10-D10)/D11)-(D11/2)*F19-((D11/6)*(F20-F19)) ->  | D25: =F19/2 ->  | E25: =(F20-F19)/(6*D11) -> 
A27: Equations
A28: Part 1 (Equation 1) | B28: =$B$23+$C$23*(X-$B$9)+$D$23*(X-$B$9)^2+$E$23*(X-$B$9)^3
A29: Part 2 (Equation 2) | B29: =$B$24+$C$24*(X-$C$9)+$D$24*(X-$C$9)^2+$E$24*(X-$C$9)^3
A30: Part 3 (Equation 3) | B30: =$B$25+$C$25*(X-$D$9)+$D$25*(X-$D$9)^2+$E$25*(X-$D$9)^3
A34: Maximum Density | B34: =MAX(J2:J3000) -> 
A35: Optimum Moisture | B35: =VLOOKUP(B34,J2:L3000,2,FALSE) -> 
A37: 5-Point Matrix Calculations | B37: 1 | C37: 0 | D37: 0 | E37: 0 | F37: 0 | G37: =MMULT(MINVERSE(A_5Pt),R_5Pt) ->  | H37: 0 | L37: =IF($G$3="4Pt Proctor",IF(K37<$C$9,1,IF(K37<$D$9,2,IF(K37<$E$9,3))),IF(K37<$C$9,4,IF(K37<$D$9,5,IF(K37<$E$9,6,7)))) -> 
B38: =B11 ->  | C38: =2*(B11+C11) ->  | D38: =C11 ->  | E38: 0 | F38: 0 | H38: =6*(((D10-C10)/C11)-((C10-B10)/B11)) -> 
B39: 0 | C39: =C11 ->  | D39: =2*(C11+D11) ->  | E39: =D11 ->  | F39: 0 | H39: =6*(((E10-D10)/D11)-((D10-C10)/C11)) -> 
B40: 0 | C40: 0 | D40: =D11 ->  | E40: =2*(D11+E11) ->  | F40: =E11 ->  | H40: =6*(((F10-E10)/E11)-((E10-D10)/D11)) -> 
B41: 0 | C41: 0 | D41: 0 | E41: 0 | F41: 1 | H41: 0
A43: 5-Point Coefficients | B43: a | C43: b | D43: c | E43: d
A44: Part 1 | B44: =B10 ->  | C44: =((C10-B10)/B11)-(B11/2)*G37-((B11/6)*(G38-G37)) ->  | D44: =G37/2 ->  | E44: =(G38-G37)/(6*B11) -> 
A45: Part 2 | B45: =C10 ->  | C45: =((D10-C10)/C11)-(C11/2)*G38-((C11/6)*(G39-G38)) ->  | D45: =G38/2 ->  | E45: =(G39-G38)/(6*C11) -> 
A46: Part 3 | B46: =D10 ->  | C46: =((E10-D10)/D11)-(D11/2)*G39-((D11/6)*(G40-G39)) ->  | D46: =G39/2 ->  | E46: =(G40-G39)/(6*D11) -> 
A47: Part 4 | B47: =E10 ->  | C47: =((F10-E10)/E11)-(E11/2)*G40-((E11/6)*(G41-G40)) ->  | D47: =G40/2 ->  | E47: =(G41-G40)/(6*B14) -> 
A49: Equations
A50: Part 1 (Equation 4) | B50: =$B$44+$C$44*(X-$B$9)+$D$44*(X-$B$9)^2+$E$44*(X-$B$9)^3
A51: Part 2 (Equation 5) | B51: =$B$45+$C$45*(X-$C$9)+$D$45*(X-$C$9)^2+$E$45*(X-$C$9)^3
A52: Part 3 (Equation 6) | B52: =$B$46+$C$46*(X-$D$9)+$D$46*(X-$D$9)^2+$E$46*(X-$D$9)^3
A53: Part 4 (Equation 7) | B53: =$B$47+$C$47*(X-$E$9)+$D$47*(X-$E$9)^2+$E$47*(X-$E$9)^3
L67: =IF($G$3="4Pt Proctor",IF(K67<$C$9,1,IF(K67<$D$9,2,IF(K67<$E$9,3))),IF(K67<$C$9,4,IF(K67<$D$9,5,IF(K67<$E$9,6,7)))) -> 
J68: =IF($G$3="4Pt Proctor",IF(K68<$C$9,$B$23+$C$23*(K68-$B$9)+$D$23*(K68-$B$9)^2+$E$23*(K68-$B$9)^3,IF(K68<$D$9,$B$24+$C$24*(K68-$C$9)+$D$24*(K68-$C$9)^2+$E$24*(K68-$C$9)^3,IF(K68<$E$9,$B$25+$C$25*(K68-$D$9)+$D$25*(K68-$D$9)^2+$E$25*(K68-$D$9)^3))),IF(K68<$C$9,$B$44+$C$44*(K68-$B$9)+$D$44*(K68-$B$9)^2+$E$44*(K68-$B$9)^3,IF(K68<$D$9,$B$45+$C$45*(K68-$C$9)+$D$45*(K68-$C$9)^2+$E$45*(K68-$C$9)^3,IF(K68<$E$9,$B$46+$C$46*(K68-$D$9)+$D$46*(K68-$D$9)^2+$E$46*(K68-$D$9)^3,$B$47+$C$47*(K68-$E$9)+$D$47*(K68-$E$9)^2+$E$47*(K68-$E$9)^3)))) ->  | K68: =IF($G$3="4Pt Proctor",IF(K67<$E$9,K67+$N$2,""),IF(K67<$F$9,K67+$N$2,"")) -> 
L131: =IF($G$3="4Pt Proctor",IF(K131<$C$9,1,IF(K131<$D$9,2,IF(K131<$E$9,3))),IF(K131<$C$9,4,IF(K131<$D$9,5,IF(K131<$E$9,6,7)))) -> 
J132: =IF($G$3="4Pt Proctor",IF(K132<$C$9,$B$23+$C$23*(K132-$B$9)+$D$23*(K132-$B$9)^2+$E$23*(K132-$B$9)^3,IF(K132<$D$9,$B$24+$C$24*(K132-$C$9)+$D$24*(K132-$C$9)^2+$E$24*(K132-$C$9)^3,IF(K132<$E$9,$B$25+$C$25*(K132-$D$9)+$D$25*(K132-$D$9)^2+$E$25*(K132-$D$9)^3))),IF(K132<$C$9,$B$44+$C$44*(K132-$B$9)+$D$44*(K132-$B$9)^2+$E$44*(K132-$B$9)^3,IF(K132<$D$9,$B$45+$C$45*(K132-$C$9)+$D$45*(K132-$C$9)^2+$E$45*(K132-$C$9)^3,IF(K132<$E$9,$B$46+$C$46*(K132-$D$9)+$D$46*(K132-$D$9)^2+$E$46*(K132-$D$9)^3,$B$47+$C$47*(K132-$E$9)+$D$47*(K132-$E$9)^2+$E$47*(K132-$E$9)^3)))) ->  | K132: =IF($G$3="4Pt Proctor",IF(K131<$E$9,K131+$N$2,""),IF(K131<$F$9,K131+$N$2,"")) -> 
L195: =IF($G$3="4Pt Proctor",IF(K195<$C$9,1,IF(K195<$D$9,2,IF(K195<$E$9,3))),IF(K195<$C$9,4,IF(K195<$D$9,5,IF(K195<$E$9,6,7)))) -> 
J196: =IF($G$3="4Pt Proctor",IF(K196<$C$9,$B$23+$C$23*(K196-$B$9)+$D$23*(K196-$B$9)^2+$E$23*(K196-$B$9)^3,IF(K196<$D$9,$B$24+$C$24*(K196-$C$9)+$D$24*(K196-$C$9)^2+$E$24*(K196-$C$9)^3,IF(K196<$E$9,$B$25+$C$25*(K196-$D$9)+$D$25*(K196-$D$9)^2+$E$25*(K196-$D$9)^3))),IF(K196<$C$9,$B$44+$C$44*(K196-$B$9)+$D$44*(K196-$B$9)^2+$E$44*(K196-$B$9)^3,IF(K196<$D$9,$B$45+$C$45*(K196-$C$9)+$D$45*(K196-$C$9)^2+$E$45*(K196-$C$9)^3,IF(K196<$E$9,$B$46+$C$46*(K196-$D$9)+$D$46*(K196-$D$9)^2+$E$46*(K196-$D$9)^3,$B$47+$C$47*(K196-$E$9)+$D$47*(K196-$E$9)^2+$E$47*(K196-$E$9)^3)))) ->  | K196: =IF($G$3="4Pt Proctor",IF(K195<$E$9,K195+$N$2,""),IF(K195<$F$9,K195+$N$2,"")) -> 
L259: =IF($G$3="4Pt Proctor",IF(K259<$C$9,1,IF(K259<$D$9,2,IF(K259<$E$9,3))),IF(K259<$C$9,4,IF(K259<$D$9,5,IF(K259<$E$9,6,7)))) -> 
J260: =IF($G$3="4Pt Proctor",IF(K260<$C$9,$B$23+$C$23*(K260-$B$9)+$D$23*(K260-$B$9)^2+$E$23*(K260-$B$9)^3,IF(K260<$D$9,$B$24+$C$24*(K260-$C$9)+$D$24*(K260-$C$9)^2+$E$24*(K260-$C$9)^3,IF(K260<$E$9,$B$25+$C$25*(K260-$D$9)+$D$25*(K260-$D$9)^2+$E$25*(K260-$D$9)^3))),IF(K260<$C$9,$B$44+$C$44*(K260-$B$9)+$D$44*(K260-$B$9)^2+$E$44*(K260-$B$9)^3,IF(K260<$D$9,$B$45+$C$45*(K260-$C$9)+$D$45*(K260-$C$9)^2+$E$45*(K260-$C$9)^3,IF(K260<$E$9,$B$46+$C$46*(K260-$D$9)+$D$46*(K260-$D$9)^2+$E$46*(K260-$D$9)^3,$B$47+$C$47*(K260-$E$9)+$D$47*(K260-$E$9)^2+$E$47*(K260-$E$9)^3)))) ->  | K260: =IF($G$3="4Pt Proctor",IF(K259<$E$9,K259+$N$2,""),IF(K259<$F$9,K259+$N$2,"")) -> 
L323: =IF($G$3="4Pt Proctor",IF(K323<$C$9,1,IF(K323<$D$9,2,IF(K323<$E$9,3))),IF(K323<$C$9,4,IF(K323<$D$9,5,IF(K323<$E$9,6,7)))) -> 
J324: =IF($G$3="4Pt Proctor",IF(K324<$C$9,$B$23+$C$23*(K324-$B$9)+$D$23*(K324-$B$9)^2+$E$23*(K324-$B$9)^3,IF(K324<$D$9,$B$24+$C$24*(K324-$C$9)+$D$24*(K324-$C$9)^2+$E$24*(K324-$C$9)^3,IF(K324<$E$9,$B$25+$C$25*(K324-$D$9)+$D$25*(K324-$D$9)^2+$E$25*(K324-$D$9)^3))),IF(K324<$C$9,$B$44+$C$44*(K324-$B$9)+$D$44*(K324-$B$9)^2+$E$44*(K324-$B$9)^3,IF(K324<$D$9,$B$45+$C$45*(K324-$C$9)+$D$45*(K324-$C$9)^2+$E$45*(K324-$C$9)^3,IF(K324<$E$9,$B$46+$C$46*(K324-$D$9)+$D$46*(K324-$D$9)^2+$E$46*(K324-$D$9)^3,$B$47+$C$47*(K324-$E$9)+$D$47*(K324-$E$9)^2+$E$47*(K324-$E$9)^3)))) ->  | K324: =IF($G$3="4Pt Proctor",IF(K323<$E$9,K323+$N$2,""),IF(K323<$F$9,K323+$N$2,"")) -> 
L387: =IF($G$3="4Pt Proctor",IF(K387<$C$9,1,IF(K387<$D$9,2,IF(K387<$E$9,3))),IF(K387<$C$9,4,IF(K387<$D$9,5,IF(K387<$E$9,6,7)))) -> 
J388: =IF($G$3="4Pt Proctor",IF(K388<$C$9,$B$23+$C$23*(K388-$B$9)+$D$23*(K388-$B$9)^2+$E$23*(K388-$B$9)^3,IF(K388<$D$9,$B$24+$C$24*(K388-$C$9)+$D$24*(K388-$C$9)^2+$E$24*(K388-$C$9)^3,IF(K388<$E$9,$B$25+$C$25*(K388-$D$9)+$D$25*(K388-$D$9)^2+$E$25*(K388-$D$9)^3))),IF(K388<$C$9,$B$44+$C$44*(K388-$B$9)+$D$44*(K388-$B$9)^2+$E$44*(K388-$B$9)^3,IF(K388<$D$9,$B$45+$C$45*(K388-$C$9)+$D$45*(K388-$C$9)^2+$E$45*(K388-$C$9)^3,IF(K388<$E$9,$B$46+$C$46*(K388-$D$9)+$D$46*(K388-$D$9)^2+$E$46*(K388-$D$9)^3,$B$47+$C$47*(K388-$E$9)+$D$47*(K388-$E$9)^2+$E$47*(K388-$E$9)^3)))) ->  | K388: =IF($G$3="4Pt Proctor",IF(K387<$E$9,K387+$N$2,""),IF(K387<$F$9,K387+$N$2,"")) -> 
L451: =IF($G$3="4Pt Proctor",IF(K451<$C$9,1,IF(K451<$D$9,2,IF(K451<$E$9,3))),IF(K451<$C$9,4,IF(K451<$D$9,5,IF(K451<$E$9,6,7)))) -> 
J452: =IF($G$3="4Pt Proctor",IF(K452<$C$9,$B$23+$C$23*(K452-$B$9)+$D$23*(K452-$B$9)^2+$E$23*(K452-$B$9)^3,IF(K452<$D$9,$B$24+$C$24*(K452-$C$9)+$D$24*(K452-$C$9)^2+$E$24*(K452-$C$9)^3,IF(K452<$E$9,$B$25+$C$25*(K452-$D$9)+$D$25*(K452-$D$9)^2+$E$25*(K452-$D$9)^3))),IF(K452<$C$9,$B$44+$C$44*(K452-$B$9)+$D$44*(K452-$B$9)^2+$E$44*(K452-$B$9)^3,IF(K452<$D$9,$B$45+$C$45*(K452-$C$9)+$D$45*(K452-$C$9)^2+$E$45*(K452-$C$9)^3,IF(K452<$E$9,$B$46+$C$46*(K452-$D$9)+$D$46*(K452-$D$9)^2+$E$46*(K452-$D$9)^3,$B$47+$C$47*(K452-$E$9)+$D$47*(K452-$E$9)^2+$E$47*(K452-$E$9)^3)))) ->  | K452: =IF($G$3="4Pt Proctor",IF(K451<$E$9,K451+$N$2,""),IF(K451<$F$9,K451+$N$2,"")) -> 
L515: =IF($G$3="4Pt Proctor",IF(K515<$C$9,1,IF(K515<$D$9,2,IF(K515<$E$9,3))),IF(K515<$C$9,4,IF(K515<$D$9,5,IF(K515<$E$9,6,7)))) -> 
J516: =IF($G$3="4Pt Proctor",IF(K516<$C$9,$B$23+$C$23*(K516-$B$9)+$D$23*(K516-$B$9)^2+$E$23*(K516-$B$9)^3,IF(K516<$D$9,$B$24+$C$24*(K516-$C$9)+$D$24*(K516-$C$9)^2+$E$24*(K516-$C$9)^3,IF(K516<$E$9,$B$25+$C$25*(K516-$D$9)+$D$25*(K516-$D$9)^2+$E$25*(K516-$D$9)^3))),IF(K516<$C$9,$B$44+$C$44*(K516-$B$9)+$D$44*(K516-$B$9)^2+$E$44*(K516-$B$9)^3,IF(K516<$D$9,$B$45+$C$45*(K516-$C$9)+$D$45*(K516-$C$9)^2+$E$45*(K516-$C$9)^3,IF(K516<$E$9,$B$46+$C$46*(K516-$D$9)+$D$46*(K516-$D$9)^2+$E$46*(K516-$D$9)^3,$B$47+$C$47*(K516-$E$9)+$D$47*(K516-$E$9)^2+$E$47*(K516-$E$9)^3)))) ->  | K516: =IF($G$3="4Pt Proctor",IF(K515<$E$9,K515+$N$2,""),IF(K515<$F$9,K515+$N$2,"")) -> 
L579: =IF($G$3="4Pt Proctor",IF(K579<$C$9,1,IF(K579<$D$9,2,IF(K579<$E$9,3))),IF(K579<$C$9,4,IF(K579<$D$9,5,IF(K579<$E$9,6,7)))) -> 
J580: =IF($G$3="4Pt Proctor",IF(K580<$C$9,$B$23+$C$23*(K580-$B$9)+$D$23*(K580-$B$9)^2+$E$23*(K580-$B$9)^3,IF(K580<$D$9,$B$24+$C$24*(K580-$C$9)+$D$24*(K580-$C$9)^2+$E$24*(K580-$C$9)^3,IF(K580<$E$9,$B$25+$C$25*(K580-$D$9)+$D$25*(K580-$D$9)^2+$E$25*(K580-$D$9)^3))),IF(K580<$C$9,$B$44+$C$44*(K580-$B$9)+$D$44*(K580-$B$9)^2+$E$44*(K580-$B$9)^3,IF(K580<$D$9,$B$45+$C$45*(K580-$C$9)+$D$45*(K580-$C$9)^2+$E$45*(K580-$C$9)^3,IF(K580<$E$9,$B$46+$C$46*(K580-$D$9)+$D$46*(K580-$D$9)^2+$E$46*(K580-$D$9)^3,$B$47+$C$47*(K580-$E$9)+$D$47*(K580-$E$9)^2+$E$47*(K580-$E$9)^3)))) ->  | K580: =IF($G$3="4Pt Proctor",IF(K579<$E$9,K579+$N$2,""),IF(K579<$F$9,K579+$N$2,"")) -> 
L643: =IF($G$3="4Pt Proctor",IF(K643<$C$9,1,IF(K643<$D$9,2,IF(K643<$E$9,3))),IF(K643<$C$9,4,IF(K643<$D$9,5,IF(K643<$E$9,6,7)))) -> 
J644: =IF($G$3="4Pt Proctor",IF(K644<$C$9,$B$23+$C$23*(K644-$B$9)+$D$23*(K644-$B$9)^2+$E$23*(K644-$B$9)^3,IF(K644<$D$9,$B$24+$C$24*(K644-$C$9)+$D$24*(K644-$C$9)^2+$E$24*(K644-$C$9)^3,IF(K644<$E$9,$B$25+$C$25*(K644-$D$9)+$D$25*(K644-$D$9)^2+$E$25*(K644-$D$9)^3))),IF(K644<$C$9,$B$44+$C$44*(K644-$B$9)+$D$44*(K644-$B$9)^2+$E$44*(K644-$B$9)^3,IF(K644<$D$9,$B$45+$C$45*(K644-$C$9)+$D$45*(K644-$C$9)^2+$E$45*(K644-$C$9)^3,IF(K644<$E$9,$B$46+$C$46*(K644-$D$9)+$D$46*(K644-$D$9)^2+$E$46*(K644-$D$9)^3,$B$47+$C$47*(K644-$E$9)+$D$47*(K644-$E$9)^2+$E$47*(K644-$E$9)^3)))) ->  | K644: =IF($G$3="4Pt Proctor",IF(K643<$E$9,K643+$N$2,""),IF(K643<$F$9,K643+$N$2,"")) -> 
L707: =IF($G$3="4Pt Proctor",IF(K707<$C$9,1,IF(K707<$D$9,2,IF(K707<$E$9,3))),IF(K707<$C$9,4,IF(K707<$D$9,5,IF(K707<$E$9,6,7)))) -> 
J708: =IF($G$3="4Pt Proctor",IF(K708<$C$9,$B$23+$C$23*(K708-$B$9)+$D$23*(K708-$B$9)^2+$E$23*(K708-$B$9)^3,IF(K708<$D$9,$B$24+$C$24*(K708-$C$9)+$D$24*(K708-$C$9)^2+$E$24*(K708-$C$9)^3,IF(K708<$E$9,$B$25+$C$25*(K708-$D$9)+$D$25*(K708-$D$9)^2+$E$25*(K708-$D$9)^3))),IF(K708<$C$9,$B$44+$C$44*(K708-$B$9)+$D$44*(K708-$B$9)^2+$E$44*(K708-$B$9)^3,IF(K708<$D$9,$B$45+$C$45*(K708-$C$9)+$D$45*(K708-$C$9)^2+$E$45*(K708-$C$9)^3,IF(K708<$E$9,$B$46+$C$46*(K708-$D$9)+$D$46*(K708-$D$9)^2+$E$46*(K708-$D$9)^3,$B$47+$C$47*(K708-$E$9)+$D$47*(K708-$E$9)^2+$E$47*(K708-$E$9)^3)))) ->  | K708: =IF($G$3="4Pt Proctor",IF(K707<$E$9,K707+$N$2,""),IF(K707<$F$9,K707+$N$2,"")) -> 
L771: =IF($G$3="4Pt Proctor",IF(K771<$C$9,1,IF(K771<$D$9,2,IF(K771<$E$9,3))),IF(K771<$C$9,4,IF(K771<$D$9,5,IF(K771<$E$9,6,7)))) -> 
J772: =IF($G$3="4Pt Proctor",IF(K772<$C$9,$B$23+$C$23*(K772-$B$9)+$D$23*(K772-$B$9)^2+$E$23*(K772-$B$9)^3,IF(K772<$D$9,$B$24+$C$24*(K772-$C$9)+$D$24*(K772-$C$9)^2+$E$24*(K772-$C$9)^3,IF(K772<$E$9,$B$25+$C$25*(K772-$D$9)+$D$25*(K772-$D$9)^2+$E$25*(K772-$D$9)^3))),IF(K772<$C$9,$B$44+$C$44*(K772-$B$9)+$D$44*(K772-$B$9)^2+$E$44*(K772-$B$9)^3,IF(K772<$D$9,$B$45+$C$45*(K772-$C$9)+$D$45*(K772-$C$9)^2+$E$45*(K772-$C$9)^3,IF(K772<$E$9,$B$46+$C$46*(K772-$D$9)+$D$46*(K772-$D$9)^2+$E$46*(K772-$D$9)^3,$B$47+$C$47*(K772-$E$9)+$D$47*(K772-$E$9)^2+$E$47*(K772-$E$9)^3)))) ->  | K772: =IF($G$3="4Pt Proctor",IF(K771<$E$9,K771+$N$2,""),IF(K771<$F$9,K771+$N$2,"")) -> 
L835: =IF($G$3="4Pt Proctor",IF(K835<$C$9,1,IF(K835<$D$9,2,IF(K835<$E$9,3))),IF(K835<$C$9,4,IF(K835<$D$9,5,IF(K835<$E$9,6,7)))) -> 
J836: =IF($G$3="4Pt Proctor",IF(K836<$C$9,$B$23+$C$23*(K836-$B$9)+$D$23*(K836-$B$9)^2+$E$23*(K836-$B$9)^3,IF(K836<$D$9,$B$24+$C$24*(K836-$C$9)+$D$24*(K836-$C$9)^2+$E$24*(K836-$C$9)^3,IF(K836<$E$9,$B$25+$C$25*(K836-$D$9)+$D$25*(K836-$D$9)^2+$E$25*(K836-$D$9)^3))),IF(K836<$C$9,$B$44+$C$44*(K836-$B$9)+$D$44*(K836-$B$9)^2+$E$44*(K836-$B$9)^3,IF(K836<$D$9,$B$45+$C$45*(K836-$C$9)+$D$45*(K836-$C$9)^2+$E$45*(K836-$C$9)^3,IF(K836<$E$9,$B$46+$C$46*(K836-$D$9)+$D$46*(K836-$D$9)^2+$E$46*(K836-$D$9)^3,$B$47+$C$47*(K836-$E$9)+$D$47*(K836-$E$9)^2+$E$47*(K836-$E$9)^3)))) ->  | K836: =IF($G$3="4Pt Proctor",IF(K835<$E$9,K835+$N$2,""),IF(K835<$F$9,K835+$N$2,"")) -> 
L899: =IF($G$3="4Pt Proctor",IF(K899<$C$9,1,IF(K899<$D$9,2,IF(K899<$E$9,3))),IF(K899<$C$9,4,IF(K899<$D$9,5,IF(K899<$E$9,6,7)))) -> 
J900: =IF($G$3="4Pt Proctor",IF(K900<$C$9,$B$23+$C$23*(K900-$B$9)+$D$23*(K900-$B$9)^2+$E$23*(K900-$B$9)^3,IF(K900<$D$9,$B$24+$C$24*(K900-$C$9)+$D$24*(K900-$C$9)^2+$E$24*(K900-$C$9)^3,IF(K900<$E$9,$B$25+$C$25*(K900-$D$9)+$D$25*(K900-$D$9)^2+$E$25*(K900-$D$9)^3))),IF(K900<$C$9,$B$44+$C$44*(K900-$B$9)+$D$44*(K900-$B$9)^2+$E$44*(K900-$B$9)^3,IF(K900<$D$9,$B$45+$C$45*(K900-$C$9)+$D$45*(K900-$C$9)^2+$E$45*(K900-$C$9)^3,IF(K900<$E$9,$B$46+$C$46*(K900-$D$9)+$D$46*(K900-$D$9)^2+$E$46*(K900-$D$9)^3,$B$47+$C$47*(K900-$E$9)+$D$47*(K900-$E$9)^2+$E$47*(K900-$E$9)^3)))) ->  | K900: =IF($G$3="4Pt Proctor",IF(K899<$E$9,K899+$N$2,""),IF(K899<$F$9,K899+$N$2,"")) -> 
L963: =IF($G$3="4Pt Proctor",IF(K963<$C$9,1,IF(K963<$D$9,2,IF(K963<$E$9,3))),IF(K963<$C$9,4,IF(K963<$D$9,5,IF(K963<$E$9,6,7)))) -> 
J964: =IF($G$3="4Pt Proctor",IF(K964<$C$9,$B$23+$C$23*(K964-$B$9)+$D$23*(K964-$B$9)^2+$E$23*(K964-$B$9)^3,IF(K964<$D$9,$B$24+$C$24*(K964-$C$9)+$D$24*(K964-$C$9)^2+$E$24*(K964-$C$9)^3,IF(K964<$E$9,$B$25+$C$25*(K964-$D$9)+$D$25*(K964-$D$9)^2+$E$25*(K964-$D$9)^3))),IF(K964<$C$9,$B$44+$C$44*(K964-$B$9)+$D$44*(K964-$B$9)^2+$E$44*(K964-$B$9)^3,IF(K964<$D$9,$B$45+$C$45*(K964-$C$9)+$D$45*(K964-$C$9)^2+$E$45*(K964-$C$9)^3,IF(K964<$E$9,$B$46+$C$46*(K964-$D$9)+$D$46*(K964-$D$9)^2+$E$46*(K964-$D$9)^3,$B$47+$C$47*(K964-$E$9)+$D$47*(K964-$E$9)^2+$E$47*(K964-$E$9)^3)))) ->  | K964: =IF($G$3="4Pt Proctor",IF(K963<$E$9,K963+$N$2,""),IF(K963<$F$9,K963+$N$2,"")) -> 
L1027: =IF($G$3="4Pt Proctor",IF(K1027<$C$9,1,IF(K1027<$D$9,2,IF(K1027<$E$9,3))),IF(K1027<$C$9,4,IF(K1027<$D$9,5,IF(K1027<$E$9,6,7)))) -> 
J1028: =IF($G$3="4Pt Proctor",IF(K1028<$C$9,$B$23+$C$23*(K1028-$B$9)+$D$23*(K1028-$B$9)^2+$E$23*(K1028-$B$9)^3,IF(K1028<$D$9,$B$24+$C$24*(K1028-$C$9)+$D$24*(K1028-$C$9)^2+$E$24*(K1028-$C$9)^3,IF(K1028<$E$9,$B$25+$C$25*(K1028-$D$9)+$D$25*(K1028-$D$9)^2+$E$25*(K1028-$D$9)^3))),IF(K1028<$C$9,$B$44+$C$44*(K1028-$B$9)+$D$44*(K1028-$B$9)^2+$E$44*(K1028-$B$9)^3,IF(K1028<$D$9,$B$45+$C$45*(K1028-$C$9)+$D$45*(K1028-$C$9)^2+$E$45*(K1028-$C$9)^3,IF(K1028<$E$9,$B$46+$C$46*(K1028-$D$9)+$D$46*(K1028-$D$9)^2+$E$46*(K1028-$D$9)^3,$B$47+$C$47*(K1028-$E$9)+$D$47*(K1028-$E$9)^2+$E$47*(K1028-$E$9)^3)))) ->  | K1028: =IF($G$3="4Pt Proctor",IF(K1027<$E$9,K1027+$N$2,""),IF(K1027<$F$9,K1027+$N$2,"")) -> 
L1091: =IF($G$3="4Pt Proctor",IF(K1091<$C$9,1,IF(K1091<$D$9,2,IF(K1091<$E$9,3))),IF(K1091<$C$9,4,IF(K1091<$D$9,5,IF(K1091<$E$9,6,7)))) -> 
J1092: =IF($G$3="4Pt Proctor",IF(K1092<$C$9,$B$23+$C$23*(K1092-$B$9)+$D$23*(K1092-$B$9)^2+$E$23*(K1092-$B$9)^3,IF(K1092<$D$9,$B$24+$C$24*(K1092-$C$9)+$D$24*(K1092-$C$9)^2+$E$24*(K1092-$C$9)^3,IF(K1092<$E$9,$B$25+$C$25*(K1092-$D$9)+$D$25*(K1092-$D$9)^2+$E$25*(K1092-$D$9)^3))),IF(K1092<$C$9,$B$44+$C$44*(K1092-$B$9)+$D$44*(K1092-$B$9)^2+$E$44*(K1092-$B$9)^3,IF(K1092<$D$9,$B$45+$C$45*(K1092-$C$9)+$D$45*(K1092-$C$9)^2+$E$45*(K1092-$C$9)^3,IF(K1092<$E$9,$B$46+$C$46*(K1092-$D$9)+$D$46*(K1092-$D$9)^2+$E$46*(K1092-$D$9)^3,$B$47+$C$47*(K1092-$E$9)+$D$47*(K1092-$E$9)^2+$E$47*(K1092-$E$9)^3)))) ->  | K1092: =IF($G$3="4Pt Proctor",IF(K1091<$E$9,K1091+$N$2,""),IF(K1091<$F$9,K1091+$N$2,"")) -> 
L1155: =IF($G$3="4Pt Proctor",IF(K1155<$C$9,1,IF(K1155<$D$9,2,IF(K1155<$E$9,3))),IF(K1155<$C$9,4,IF(K1155<$D$9,5,IF(K1155<$E$9,6,7)))) -> 
J1156: =IF($G$3="4Pt Proctor",IF(K1156<$C$9,$B$23+$C$23*(K1156-$B$9)+$D$23*(K1156-$B$9)^2+$E$23*(K1156-$B$9)^3,IF(K1156<$D$9,$B$24+$C$24*(K1156-$C$9)+$D$24*(K1156-$C$9)^2+$E$24*(K1156-$C$9)^3,IF(K1156<$E$9,$B$25+$C$25*(K1156-$D$9)+$D$25*(K1156-$D$9)^2+$E$25*(K1156-$D$9)^3))),IF(K1156<$C$9,$B$44+$C$44*(K1156-$B$9)+$D$44*(K1156-$B$9)^2+$E$44*(K1156-$B$9)^3,IF(K1156<$D$9,$B$45+$C$45*(K1156-$C$9)+$D$45*(K1156-$C$9)^2+$E$45*(K1156-$C$9)^3,IF(K1156<$E$9,$B$46+$C$46*(K1156-$D$9)+$D$46*(K1156-$D$9)^2+$E$46*(K1156-$D$9)^3,$B$47+$C$47*(K1156-$E$9)+$D$47*(K1156-$E$9)^2+$E$47*(K1156-$E$9)^3)))) ->  | K1156: =IF($G$3="4Pt Proctor",IF(K1155<$E$9,K1155+$N$2,""),IF(K1155<$F$9,K1155+$N$2,"")) -> 
L1219: =IF($G$3="4Pt Proctor",IF(K1219<$C$9,1,IF(K1219<$D$9,2,IF(K1219<$E$9,3))),IF(K1219<$C$9,4,IF(K1219<$D$9,5,IF(K1219<$E$9,6,7)))) -> 
J1220: =IF($G$3="4Pt Proctor",IF(K1220<$C$9,$B$23+$C$23*(K1220-$B$9)+$D$23*(K1220-$B$9)^2+$E$23*(K1220-$B$9)^3,IF(K1220<$D$9,$B$24+$C$24*(K1220-$C$9)+$D$24*(K1220-$C$9)^2+$E$24*(K1220-$C$9)^3,IF(K1220<$E$9,$B$25+$C$25*(K1220-$D$9)+$D$25*(K1220-$D$9)^2+$E$25*(K1220-$D$9)^3))),IF(K1220<$C$9,$B$44+$C$44*(K1220-$B$9)+$D$44*(K1220-$B$9)^2+$E$44*(K1220-$B$9)^3,IF(K1220<$D$9,$B$45+$C$45*(K1220-$C$9)+$D$45*(K1220-$C$9)^2+$E$45*(K1220-$C$9)^3,IF(K1220<$E$9,$B$46+$C$46*(K1220-$D$9)+$D$46*(K1220-$D$9)^2+$E$46*(K1220-$D$9)^3,$B$47+$C$47*(K1220-$E$9)+$D$47*(K1220-$E$9)^2+$E$47*(K1220-$E$9)^3)))) ->  | K1220: =IF($G$3="4Pt Proctor",IF(K1219<$E$9,K1219+$N$2,""),IF(K1219<$F$9,K1219+$N$2,"")) -> 
L1283: =IF($G$3="4Pt Proctor",IF(K1283<$C$9,1,IF(K1283<$D$9,2,IF(K1283<$E$9,3))),IF(K1283<$C$9,4,IF(K1283<$D$9,5,IF(K1283<$E$9,6,7)))) -> 
J1284: =IF($G$3="4Pt Proctor",IF(K1284<$C$9,$B$23+$C$23*(K1284-$B$9)+$D$23*(K1284-$B$9)^2+$E$23*(K1284-$B$9)^3,IF(K1284<$D$9,$B$24+$C$24*(K1284-$C$9)+$D$24*(K1284-$C$9)^2+$E$24*(K1284-$C$9)^3,IF(K1284<$E$9,$B$25+$C$25*(K1284-$D$9)+$D$25*(K1284-$D$9)^2+$E$25*(K1284-$D$9)^3))),IF(K1284<$C$9,$B$44+$C$44*(K1284-$B$9)+$D$44*(K1284-$B$9)^2+$E$44*(K1284-$B$9)^3,IF(K1284<$D$9,$B$45+$C$45*(K1284-$C$9)+$D$45*(K1284-$C$9)^2+$E$45*(K1284-$C$9)^3,IF(K1284<$E$9,$B$46+$C$46*(K1284-$D$9)+$D$46*(K1284-$D$9)^2+$E$46*(K1284-$D$9)^3,$B$47+$C$47*(K1284-$E$9)+$D$47*(K1284-$E$9)^2+$E$47*(K1284-$E$9)^3)))) ->  | K1284: =IF($G$3="4Pt Proctor",IF(K1283<$E$9,K1283+$N$2,""),IF(K1283<$F$9,K1283+$N$2,"")) -> 
L1347: =IF($G$3="4Pt Proctor",IF(K1347<$C$9,1,IF(K1347<$D$9,2,IF(K1347<$E$9,3))),IF(K1347<$C$9,4,IF(K1347<$D$9,5,IF(K1347<$E$9,6,7)))) -> 
J1348: =IF($G$3="4Pt Proctor",IF(K1348<$C$9,$B$23+$C$23*(K1348-$B$9)+$D$23*(K1348-$B$9)^2+$E$23*(K1348-$B$9)^3,IF(K1348<$D$9,$B$24+$C$24*(K1348-$C$9)+$D$24*(K1348-$C$9)^2+$E$24*(K1348-$C$9)^3,IF(K1348<$E$9,$B$25+$C$25*(K1348-$D$9)+$D$25*(K1348-$D$9)^2+$E$25*(K1348-$D$9)^3))),IF(K1348<$C$9,$B$44+$C$44*(K1348-$B$9)+$D$44*(K1348-$B$9)^2+$E$44*(K1348-$B$9)^3,IF(K1348<$D$9,$B$45+$C$45*(K1348-$C$9)+$D$45*(K1348-$C$9)^2+$E$45*(K1348-$C$9)^3,IF(K1348<$E$9,$B$46+$C$46*(K1348-$D$9)+$D$46*(K1348-$D$9)^2+$E$46*(K1348-$D$9)^3,$B$47+$C$47*(K1348-$E$9)+$D$47*(K1348-$E$9)^2+$E$47*(K1348-$E$9)^3)))) ->  | K1348: =IF($G$3="4Pt Proctor",IF(K1347<$E$9,K1347+$N$2,""),IF(K1347<$F$9,K1347+$N$2,"")) -> 
L1411: =IF($G$3="4Pt Proctor",IF(K1411<$C$9,1,IF(K1411<$D$9,2,IF(K1411<$E$9,3))),IF(K1411<$C$9,4,IF(K1411<$D$9,5,IF(K1411<$E$9,6,7)))) -> 
J1412: =IF($G$3="4Pt Proctor",IF(K1412<$C$9,$B$23+$C$23*(K1412-$B$9)+$D$23*(K1412-$B$9)^2+$E$23*(K1412-$B$9)^3,IF(K1412<$D$9,$B$24+$C$24*(K1412-$C$9)+$D$24*(K1412-$C$9)^2+$E$24*(K1412-$C$9)^3,IF(K1412<$E$9,$B$25+$C$25*(K1412-$D$9)+$D$25*(K1412-$D$9)^2+$E$25*(K1412-$D$9)^3))),IF(K1412<$C$9,$B$44+$C$44*(K1412-$B$9)+$D$44*(K1412-$B$9)^2+$E$44*(K1412-$B$9)^3,IF(K1412<$D$9,$B$45+$C$45*(K1412-$C$9)+$D$45*(K1412-$C$9)^2+$E$45*(K1412-$C$9)^3,IF(K1412<$E$9,$B$46+$C$46*(K1412-$D$9)+$D$46*(K1412-$D$9)^2+$E$46*(K1412-$D$9)^3,$B$47+$C$47*(K1412-$E$9)+$D$47*(K1412-$E$9)^2+$E$47*(K1412-$E$9)^3)))) ->  | K1412: =IF($G$3="4Pt Proctor",IF(K1411<$E$9,K1411+$N$2,""),IF(K1411<$F$9,K1411+$N$2,"")) -> 
L1475: =IF($G$3="4Pt Proctor",IF(K1475<$C$9,1,IF(K1475<$D$9,2,IF(K1475<$E$9,3))),IF(K1475<$C$9,4,IF(K1475<$D$9,5,IF(K1475<$E$9,6,7)))) -> 
J1476: =IF($G$3="4Pt Proctor",IF(K1476<$C$9,$B$23+$C$23*(K1476-$B$9)+$D$23*(K1476-$B$9)^2+$E$23*(K1476-$B$9)^3,IF(K1476<$D$9,$B$24+$C$24*(K1476-$C$9)+$D$24*(K1476-$C$9)^2+$E$24*(K1476-$C$9)^3,IF(K1476<$E$9,$B$25+$C$25*(K1476-$D$9)+$D$25*(K1476-$D$9)^2+$E$25*(K1476-$D$9)^3))),IF(K1476<$C$9,$B$44+$C$44*(K1476-$B$9)+$D$44*(K1476-$B$9)^2+$E$44*(K1476-$B$9)^3,IF(K1476<$D$9,$B$45+$C$45*(K1476-$C$9)+$D$45*(K1476-$C$9)^2+$E$45*(K1476-$C$9)^3,IF(K1476<$E$9,$B$46+$C$46*(K1476-$D$9)+$D$46*(K1476-$D$9)^2+$E$46*(K1476-$D$9)^3,$B$47+$C$47*(K1476-$E$9)+$D$47*(K1476-$E$9)^2+$E$47*(K1476-$E$9)^3)))) ->  | K1476: =IF($G$3="4Pt Proctor",IF(K1475<$E$9,K1475+$N$2,""),IF(K1475<$F$9,K1475+$N$2,"")) -> 
L1539: =IF($G$3="4Pt Proctor",IF(K1539<$C$9,1,IF(K1539<$D$9,2,IF(K1539<$E$9,3))),IF(K1539<$C$9,4,IF(K1539<$D$9,5,IF(K1539<$E$9,6,7)))) -> 
J1540: =IF($G$3="4Pt Proctor",IF(K1540<$C$9,$B$23+$C$23*(K1540-$B$9)+$D$23*(K1540-$B$9)^2+$E$23*(K1540-$B$9)^3,IF(K1540<$D$9,$B$24+$C$24*(K1540-$C$9)+$D$24*(K1540-$C$9)^2+$E$24*(K1540-$C$9)^3,IF(K1540<$E$9,$B$25+$C$25*(K1540-$D$9)+$D$25*(K1540-$D$9)^2+$E$25*(K1540-$D$9)^3))),IF(K1540<$C$9,$B$44+$C$44*(K1540-$B$9)+$D$44*(K1540-$B$9)^2+$E$44*(K1540-$B$9)^3,IF(K1540<$D$9,$B$45+$C$45*(K1540-$C$9)+$D$45*(K1540-$C$9)^2+$E$45*(K1540-$C$9)^3,IF(K1540<$E$9,$B$46+$C$46*(K1540-$D$9)+$D$46*(K1540-$D$9)^2+$E$46*(K1540-$D$9)^3,$B$47+$C$47*(K1540-$E$9)+$D$47*(K1540-$E$9)^2+$E$47*(K1540-$E$9)^3)))) ->  | K1540: =IF($G$3="4Pt Proctor",IF(K1539<$E$9,K1539+$N$2,""),IF(K1539<$F$9,K1539+$N$2,"")) -> 
L1603: =IF($G$3="4Pt Proctor",IF(K1603<$C$9,1,IF(K1603<$D$9,2,IF(K1603<$E$9,3))),IF(K1603<$C$9,4,IF(K1603<$D$9,5,IF(K1603<$E$9,6,7)))) -> 
J1604: =IF($G$3="4Pt Proctor",IF(K1604<$C$9,$B$23+$C$23*(K1604-$B$9)+$D$23*(K1604-$B$9)^2+$E$23*(K1604-$B$9)^3,IF(K1604<$D$9,$B$24+$C$24*(K1604-$C$9)+$D$24*(K1604-$C$9)^2+$E$24*(K1604-$C$9)^3,IF(K1604<$E$9,$B$25+$C$25*(K1604-$D$9)+$D$25*(K1604-$D$9)^2+$E$25*(K1604-$D$9)^3))),IF(K1604<$C$9,$B$44+$C$44*(K1604-$B$9)+$D$44*(K1604-$B$9)^2+$E$44*(K1604-$B$9)^3,IF(K1604<$D$9,$B$45+$C$45*(K1604-$C$9)+$D$45*(K1604-$C$9)^2+$E$45*(K1604-$C$9)^3,IF(K1604<$E$9,$B$46+$C$46*(K1604-$D$9)+$D$46*(K1604-$D$9)^2+$E$46*(K1604-$D$9)^3,$B$47+$C$47*(K1604-$E$9)+$D$47*(K1604-$E$9)^2+$E$47*(K1604-$E$9)^3)))) ->  | K1604: =IF($G$3="4Pt Proctor",IF(K1603<$E$9,K1603+$N$2,""),IF(K1603<$F$9,K1603+$N$2,"")) -> 
L1667: =IF($G$3="4Pt Proctor",IF(K1667<$C$9,1,IF(K1667<$D$9,2,IF(K1667<$E$9,3))),IF(K1667<$C$9,4,IF(K1667<$D$9,5,IF(K1667<$E$9,6,7)))) -> 
J1668: =IF($G$3="4Pt Proctor",IF(K1668<$C$9,$B$23+$C$23*(K1668-$B$9)+$D$23*(K1668-$B$9)^2+$E$23*(K1668-$B$9)^3,IF(K1668<$D$9,$B$24+$C$24*(K1668-$C$9)+$D$24*(K1668-$C$9)^2+$E$24*(K1668-$C$9)^3,IF(K1668<$E$9,$B$25+$C$25*(K1668-$D$9)+$D$25*(K1668-$D$9)^2+$E$25*(K1668-$D$9)^3))),IF(K1668<$C$9,$B$44+$C$44*(K1668-$B$9)+$D$44*(K1668-$B$9)^2+$E$44*(K1668-$B$9)^3,IF(K1668<$D$9,$B$45+$C$45*(K1668-$C$9)+$D$45*(K1668-$C$9)^2+$E$45*(K1668-$C$9)^3,IF(K1668<$E$9,$B$46+$C$46*(K1668-$D$9)+$D$46*(K1668-$D$9)^2+$E$46*(K1668-$D$9)^3,$B$47+$C$47*(K1668-$E$9)+$D$47*(K1668-$E$9)^2+$E$47*(K1668-$E$9)^3)))) ->  | K1668: =IF($G$3="4Pt Proctor",IF(K1667<$E$9,K1667+$N$2,""),IF(K1667<$F$9,K1667+$N$2,"")) -> 
L1731: =IF($G$3="4Pt Proctor",IF(K1731<$C$9,1,IF(K1731<$D$9,2,IF(K1731<$E$9,3))),IF(K1731<$C$9,4,IF(K1731<$D$9,5,IF(K1731<$E$9,6,7)))) -> 
J1732: =IF($G$3="4Pt Proctor",IF(K1732<$C$9,$B$23+$C$23*(K1732-$B$9)+$D$23*(K1732-$B$9)^2+$E$23*(K1732-$B$9)^3,IF(K1732<$D$9,$B$24+$C$24*(K1732-$C$9)+$D$24*(K1732-$C$9)^2+$E$24*(K1732-$C$9)^3,IF(K1732<$E$9,$B$25+$C$25*(K1732-$D$9)+$D$25*(K1732-$D$9)^2+$E$25*(K1732-$D$9)^3))),IF(K1732<$C$9,$B$44+$C$44*(K1732-$B$9)+$D$44*(K1732-$B$9)^2+$E$44*(K1732-$B$9)^3,IF(K1732<$D$9,$B$45+$C$45*(K1732-$C$9)+$D$45*(K1732-$C$9)^2+$E$45*(K1732-$C$9)^3,IF(K1732<$E$9,$B$46+$C$46*(K1732-$D$9)+$D$46*(K1732-$D$9)^2+$E$46*(K1732-$D$9)^3,$B$47+$C$47*(K1732-$E$9)+$D$47*(K1732-$E$9)^2+$E$47*(K1732-$E$9)^3)))) ->  | K1732: =IF($G$3="4Pt Proctor",IF(K1731<$E$9,K1731+$N$2,""),IF(K1731<$F$9,K1731+$N$2,"")) -> 
L1795: =IF($G$3="4Pt Proctor",IF(K1795<$C$9,1,IF(K1795<$D$9,2,IF(K1795<$E$9,3))),IF(K1795<$C$9,4,IF(K1795<$D$9,5,IF(K1795<$E$9,6,7)))) -> 
J1796: =IF($G$3="4Pt Proctor",IF(K1796<$C$9,$B$23+$C$23*(K1796-$B$9)+$D$23*(K1796-$B$9)^2+$E$23*(K1796-$B$9)^3,IF(K1796<$D$9,$B$24+$C$24*(K1796-$C$9)+$D$24*(K1796-$C$9)^2+$E$24*(K1796-$C$9)^3,IF(K1796<$E$9,$B$25+$C$25*(K1796-$D$9)+$D$25*(K1796-$D$9)^2+$E$25*(K1796-$D$9)^3))),IF(K1796<$C$9,$B$44+$C$44*(K1796-$B$9)+$D$44*(K1796-$B$9)^2+$E$44*(K1796-$B$9)^3,IF(K1796<$D$9,$B$45+$C$45*(K1796-$C$9)+$D$45*(K1796-$C$9)^2+$E$45*(K1796-$C$9)^3,IF(K1796<$E$9,$B$46+$C$46*(K1796-$D$9)+$D$46*(K1796-$D$9)^2+$E$46*(K1796-$D$9)^3,$B$47+$C$47*(K1796-$E$9)+$D$47*(K1796-$E$9)^2+$E$47*(K1796-$E$9)^3)))) ->  | K1796: =IF($G$3="4Pt Proctor",IF(K1795<$E$9,K1795+$N$2,""),IF(K1795<$F$9,K1795+$N$2,"")) -> 
L1859: =IF($G$3="4Pt Proctor",IF(K1859<$C$9,1,IF(K1859<$D$9,2,IF(K1859<$E$9,3))),IF(K1859<$C$9,4,IF(K1859<$D$9,5,IF(K1859<$E$9,6,7)))) -> 
J1860: =IF($G$3="4Pt Proctor",IF(K1860<$C$9,$B$23+$C$23*(K1860-$B$9)+$D$23*(K1860-$B$9)^2+$E$23*(K1860-$B$9)^3,IF(K1860<$D$9,$B$24+$C$24*(K1860-$C$9)+$D$24*(K1860-$C$9)^2+$E$24*(K1860-$C$9)^3,IF(K1860<$E$9,$B$25+$C$25*(K1860-$D$9)+$D$25*(K1860-$D$9)^2+$E$25*(K1860-$D$9)^3))),IF(K1860<$C$9,$B$44+$C$44*(K1860-$B$9)+$D$44*(K1860-$B$9)^2+$E$44*(K1860-$B$9)^3,IF(K1860<$D$9,$B$45+$C$45*(K1860-$C$9)+$D$45*(K1860-$C$9)^2+$E$45*(K1860-$C$9)^3,IF(K1860<$E$9,$B$46+$C$46*(K1860-$D$9)+$D$46*(K1860-$D$9)^2+$E$46*(K1860-$D$9)^3,$B$47+$C$47*(K1860-$E$9)+$D$47*(K1860-$E$9)^2+$E$47*(K1860-$E$9)^3)))) ->  | K1860: =IF($G$3="4Pt Proctor",IF(K1859<$E$9,K1859+$N$2,""),IF(K1859<$F$9,K1859+$N$2,"")) -> 
L1923: =IF($G$3="4Pt Proctor",IF(K1923<$C$9,1,IF(K1923<$D$9,2,IF(K1923<$E$9,3))),IF(K1923<$C$9,4,IF(K1923<$D$9,5,IF(K1923<$E$9,6,7)))) -> 
J1924: =IF($G$3="4Pt Proctor",IF(K1924<$C$9,$B$23+$C$23*(K1924-$B$9)+$D$23*(K1924-$B$9)^2+$E$23*(K1924-$B$9)^3,IF(K1924<$D$9,$B$24+$C$24*(K1924-$C$9)+$D$24*(K1924-$C$9)^2+$E$24*(K1924-$C$9)^3,IF(K1924<$E$9,$B$25+$C$25*(K1924-$D$9)+$D$25*(K1924-$D$9)^2+$E$25*(K1924-$D$9)^3))),IF(K1924<$C$9,$B$44+$C$44*(K1924-$B$9)+$D$44*(K1924-$B$9)^2+$E$44*(K1924-$B$9)^3,IF(K1924<$D$9,$B$45+$C$45*(K1924-$C$9)+$D$45*(K1924-$C$9)^2+$E$45*(K1924-$C$9)^3,IF(K1924<$E$9,$B$46+$C$46*(K1924-$D$9)+$D$46*(K1924-$D$9)^2+$E$46*(K1924-$D$9)^3,$B$47+$C$47*(K1924-$E$9)+$D$47*(K1924-$E$9)^2+$E$47*(K1924-$E$9)^3)))) ->  | K1924: =IF($G$3="4Pt Proctor",IF(K1923<$E$9,K1923+$N$2,""),IF(K1923<$F$9,K1923+$N$2,"")) -> 
L1987: =IF($G$3="4Pt Proctor",IF(K1987<$C$9,1,IF(K1987<$D$9,2,IF(K1987<$E$9,3))),IF(K1987<$C$9,4,IF(K1987<$D$9,5,IF(K1987<$E$9,6,7)))) -> 
J1988: =IF($G$3="4Pt Proctor",IF(K1988<$C$9,$B$23+$C$23*(K1988-$B$9)+$D$23*(K1988-$B$9)^2+$E$23*(K1988-$B$9)^3,IF(K1988<$D$9,$B$24+$C$24*(K1988-$C$9)+$D$24*(K1988-$C$9)^2+$E$24*(K1988-$C$9)^3,IF(K1988<$E$9,$B$25+$C$25*(K1988-$D$9)+$D$25*(K1988-$D$9)^2+$E$25*(K1988-$D$9)^3))),IF(K1988<$C$9,$B$44+$C$44*(K1988-$B$9)+$D$44*(K1988-$B$9)^2+$E$44*(K1988-$B$9)^3,IF(K1988<$D$9,$B$45+$C$45*(K1988-$C$9)+$D$45*(K1988-$C$9)^2+$E$45*(K1988-$C$9)^3,IF(K1988<$E$9,$B$46+$C$46*(K1988-$D$9)+$D$46*(K1988-$D$9)^2+$E$46*(K1988-$D$9)^3,$B$47+$C$47*(K1988-$E$9)+$D$47*(K1988-$E$9)^2+$E$47*(K1988-$E$9)^3)))) ->  | K1988: =IF($G$3="4Pt Proctor",IF(K1987<$E$9,K1987+$N$2,""),IF(K1987<$F$9,K1987+$N$2,"")) -> 

Sheet Example
Q2: G&B-303(6/12/13)
D3: TP-24587-01
F5: Minnesota Department of Transportation | S5: 4-in
S6: 6-in
S7: Metric
F8: Office of Materials and Road Research | S8: English
D11: Calculation for Moisture - Density Relationships in Subgrade Soils and
D12: Aggregate Base and Shoulders, English & Metric, | M12: Proctor Mold | O12: 4-in
D13: 4" (standard) and 6" (Modified) Mold | M13: Density Units | O13: English
D14: Sample No: | I14: Curve No: | M14: Date:
M16: S. P. No:
D17: Optimum Moisture (Mt) | G17: =IFERROR(ROUND('Example Data'!B35,1),"") -> 8.5 | I17: %
D18: Maximum Density (Dt) | G18: =IFERROR(ROUND('Example Data'!B34,1),"") -> 130 | I18: kg/m3(lb/ft3)
D20: A: Wt. Wet Soil + Mold (g) | H20: 5609.1 | J20: 5682.2 | L20: 5756.7 | N20: 5782.8 | P20: 5753.4
D21: B: Wt. Mold (g) | H21: 3641.4 | J21: 3641.4 | L21: 3641.4 | N21: 3641.4 | P21: 3641.4
D22: C: Wt. Wet Soil (g) | H22: =IF(H21="", "", H20-H21) -> 1967.7 | J22: =IF(J21="", "", J20-J21) -> 2040.8 | L22: =IF(L21="", "", L20-L21) -> 2115.3 | N22: =IF(N21="", "", N20-N21) -> 2141.4 | P22: =IF(P21="", "", P20-P21) -> 2112
D23: D: Wet Density kg/m3 (lb/ft3) | H23: =IF(H21="","",IF((AND($O$12="6-in",$O$13="English")),H22*0.00220462/(1/13.3333),IF((AND($O$12="4-in",$O$13="English")),H22*0.00220462/(1/30),IF((AND($O$12="6-in",$O$13="Metric")),H22/1000/(1/(13.3333/0.028316847)),IF((AND($O$12="4-in",$O$13="Metric")),H22/1000/(1/(30/0.028316847))))))) -> 130.1409232 | J23: =IF(J21="","",IF((AND($O$12="6-in",$O$13="English")),J22*0.00220462/(1/13.3333),IF((AND($O$12="4-in",$O$13="English")),J22*0.00220462/(1/30),IF((AND($O$12="6-in",$O$13="Metric")),J22/1000/(1/(13.3333/0.028316847)),IF((AND($O$12="4-in",$O$13="Metric")),J22/1000/(1/(30/0.028316847))))))) -> 134.9756549 | L23: =IF(L21="","",IF((AND($O$12="6-in",$O$13="English")),L22*0.00220462/(1/13.3333),IF((AND($O$12="4-in",$O$13="English")),L22*0.00220462/(1/30),IF((AND($O$12="6-in",$O$13="Metric")),L22/1000/(1/(13.3333/0.028316847)),IF((AND($O$12="4-in",$O$13="Metric")),L22/1000/(1/(30/0.028316847))))))) -> 139.9029806 | N23: =IF(N21="","",IF((AND($O$12="6-in",$O$13="English")),N22*0.00220462/(1/13.3333),IF((AND($O$12="4-in",$O$13="English")),N22*0.00220462/(1/30),IF((AND($O$12="6-in",$O$13="Metric")),N22/1000/(1/(13.3333/0.028316847)),IF((AND($O$12="4-in",$O$13="Metric")),N22/1000/(1/(30/0.028316847))))))) -> 141.629198 | P23: =IF(P21="","",IF((AND($O$12="6-in",$O$13="English")),P22*0.00220462/(1/13.3333),IF((AND($O$12="4-in",$O$13="English")),P22*0.00220462/(1/30),IF((AND($O$12="6-in",$O$13="Metric")),P22/1000/(1/(13.3333/0.028316847)),IF((AND($O$12="4-in",$O$13="Metric")),P22/1000/(1/(30/0.028316847))))))) -> 139.6847232
D24: - Burner Method -
D25: E: Wt. Wet Soil + Pan (g) | H25: 868.8 | J25: 836.3 | L25: 883.8 | N25: 900.3 | P25: 920.3
D26: F: Wt. Dry Soil + Pan (g) | H26: 846.9 | J26: 809.6 | L26: 845.9 | N26: 854.6 | P26: 864.7
D27: G: Wt Moisture (g) | H27: =IF(H25="", "", H25-H26) -> 21.9 | J27: =IF(J25="", "", J25-J26) -> 26.7 | L27: =IF(L25="", "", L25-L26) -> 37.9 | N27: =IF(N25="", "", N25-N26) -> 45.7 | P27: =IF(P25="", "", P25-P26) -> 55.6
D28: H: Wt Pan (g) | H28: 356.4 | J28: 353.9 | L28: 359.5 | N28: 360.3 | P28: 354.6
D29: I: Wt. Dry Soil (g) | H29: =IF(H25="", "",H26-H28) -> 490.5 | J29: =IF(J25="", "",J26-J28) -> 455.7 | L29: =IF(L25="", "",L26-L28) -> 486.4 | N29: =IF(N25="", "",N26-N28) -> 494.3 | P29: =IF(P25="", "",P26-P28) -> 510.1
D30: - Speedy Method -
D31: Sample Size [Note that input for % Wet Moisture (for Row J directly below) is dependant upon the sample size and the Speedy Dial Reading, see procedure in G&B Manual section 5-692.245]
D32: J: % Moisture - Wet Wt.
D33: K: % Moisture - Dry Wt. | H33: =IF(OR(H29=0,H29=""),"",IF(H20="", "", IF(H27="",(H32*100/(100-H32)),((H27/H29)*100)))) -> 4.464831804 | J33: =IF(OR(J29=0,J29=""),"",IF(J20="", "", IF(J27="",(J32*100/(100-J32)),((J27/J29)*100)))) -> 5.859117841 | L33: =IF(OR(L29=0,L29=""),"",IF(L20="", "", IF(L27="",(L32*100/(100-L32)),((L27/L29)*100)))) -> 7.791940789 | N33: =IF(OR(N29=0,N29=""),"",IF(N20="", "", IF(N27="",(N32*100/(100-N32)),((N27/N29)*100)))) -> 9.245397532 | P33: =IF(OR(P29=0,P29=""),"",IF(P20="", "", IF(P27="",(P32*100/(100-P32)),((P27/P29)*100)))) -> 10.89982356
D34: L: Dry Density kg/m3 (lb/ft3) | H34: =IF(H33="","",H23/(100+H33)*100) -> 124.5786941 | J34: =IF(J33="","",J23/(100+J33)*100) -> 127.5049874 | L34: =IF(L33="","",L23/(100+L33)*100) -> 129.7898336 | N34: =IF(N33="","",N23/(100+N33)*100) -> 129.6431715 | P34: =IF(P33="","",P23/(100+P33)*100) -> 125.9557668
D35: Calculations: C= A-B | L35: See Grading and Base Manual 5-692.200-Figure 10.
D36: D= (1059.43)C (Metric) or D=(30)C (English), for 4" Mold
D37: D= (470.861)C (Metric) or D=(13.3333)C (English), for 6" Mold
D38: G=E-F; I=F-H
D39: K=G/Ix100 or K=J/(I-J/100) L=Dx100/(100+K)
D40: Remarks: % Ret. 4.75 mm (#4) | J40: Mf | M40: Df
D42: Soils Class
J44: Tester
D45: cc:Project File

Sheet Example Data
A1: Calculated Points | J1: Y-Value | K1: X-Value | L1: Equation #
B2: 1 | C2: 2 | D2: 3 | E2: 4 | F2: 5 | I2: Initialize | J2: =B4 -> 124.6 | K2: =B3 -> 4.46 | L2: =IF($G$3="4Pt Proctor",IF(K2<$C$9,1,IF(K2<$D$9,2,IF(K2<$E$9,3))),IF(K2<$C$9,4,IF(K2<$D$9,5,IF(K2<$E$9,6,7)))) -> 4 | N2: =IF(G3="4Pt Proctor",(E9-B9)/2000,(F9-B9)/2000) -> 0.00322
A3: ='Electronic Form'!D33 -> K: % Moisture - Dry Wt. | B3: =ROUND(Example!H33,2) -> 4.46 | C3: =ROUND(Example!J33,2) -> 5.86 | D3: =ROUND(Example!L33,2) -> 7.79 | E3: =ROUND(Example!N33,2) -> 9.25 | F3: =ROUND(Example!P33,2) -> 10.9 | G3: =IF(ISNUMBER(F3),"5Pt Proctor","4Pt Proctor") -> 5Pt Proctor | J3: =IF($G$3="4Pt Proctor",IF(K3<$C$9,$B$23+$C$23*(K3-$B$9)+$D$23*(K3-$B$9)^2+$E$23*(K3-$B$9)^3,IF(K3<$D$9,$B$24+$C$24*(K3-$C$9)+$D$24*(K3-$C$9)^2+$E$24*(K3-$C$9)^3,IF(K3<$E$9,$B$25+$C$25*(K3-$D$9)+$D$25*(K3-$D$9)^2+$E$25*(K3-$D$9)^3))),IF(K3<$C$9,$B$44+$C$44*(K3-$B$9)+$D$44*(K3-$B$9)^2+$E$44*(K3-$B$9)^3,IF(K3<$D$9,$B$45+$C$45*(K3-$C$9)+$D$45*(K3-$C$9)^2+$E$45*(K3-$C$9)^3,IF(K3<$E$9,$B$46+$C$46*(K3-$D$9)+$D$46*(K3-$D$9)^2+$E$46*(K3-$D$9)^3,$B$47+$C$47*(K3-$E$9)+$D$47*(K3-$E$9)^2+$E$47*(K3-$E$9)^3)))) -> 124.6071335 | K3: =IF($G$3="4Pt Proctor",IF(K2<$E$9,K2+$N$2,""),IF(K2<$F$9,K2+$N$2,"")) -> 4.46322 | L3: =IF($G$3="4Pt Proctor",IF(K3<$C$9,1,IF(K3<$D$9,2,IF(K3<$E$9,3))),IF(K3<$C$9,4,IF(K3<$D$9,5,IF(K3<$E$9,6,7)))) -> 4
A4: ='Electronic Form'!D34 -> L: Dry Density kg/m3 (lb/ft3) | B4: =ROUND(Example!H34,1) -> 124.6 | C4: =ROUND(Example!J34,1) -> 127.5 | D4: =ROUND(Example!L34,1) -> 129.8 | E4: =ROUND(Example!N34,1) -> 129.6 | F4: =ROUND(Example!P34,1) -> 126 | J4: =IF($G$3="4Pt Proctor",IF(K4<$C$9,$B$23+$C$23*(K4-$B$9)+$D$23*(K4-$B$9)^2+$E$23*(K4-$B$9)^3,IF(K4<$D$9,$B$24+$C$24*(K4-$C$9)+$D$24*(K4-$C$9)^2+$E$24*(K4-$C$9)^3,IF(K4<$E$9,$B$25+$C$25*(K4-$D$9)+$D$25*(K4-$D$9)^2+$E$25*(K4-$D$9)^3))),IF(K4<$C$9,$B$44+$C$44*(K4-$B$9)+$D$44*(K4-$B$9)^2+$E$44*(K4-$B$9)^3,IF(K4<$D$9,$B$45+$C$45*(K4-$C$9)+$D$45*(K4-$C$9)^2+$E$45*(K4-$C$9)^3,IF(K4<$E$9,$B$46+$C$46*(K4-$D$9)+$D$46*(K4-$D$9)^2+$E$46*(K4-$D$9)^3,$B$47+$C$47*(K4-$E$9)+$D$47*(K4-$E$9)^2+$E$47*(K4-$E$9)^3)))) -> 124.614267 | K4: =IF($G$3="4Pt Proctor",IF(K3<$E$9,K3+$N$2,""),IF(K3<$F$9,K3+$N$2,"")) -> 4.46644 | L4: =IF($G$3="4Pt Proctor",IF(K4<$C$9,1,IF(K4<$D$9,2,IF(K4<$E$9,3))),IF(K4<$C$9,4,IF(K4<$D$9,5,IF(K4<$E$9,6,7)))) -> 4
J5: 124.6214004 | K5: 4.46966 | L5: 4
J6: 124.6285338 | K6: 4.47288 | L6: 4
A7: Ordered Points | J7: 124.6356672 | K7: 4.4761 | L7: 4
B8: 1 | C8: 2 | D8: 3 | E8: 4 | F8: 5 | J8: 124.6428004 | K8: 4.47932 | L8: 4
A9: X Values | B9: =IF($G$3="4Pt Proctor",SMALL($B$3:$E$3,B8),SMALL($B$3:$F$3,B8)) -> 4.46 | C9: =IF($G$3="4Pt Proctor",SMALL($B$3:$E$3,C8),SMALL($B$3:$F$3,C8)) -> 5.86 | D9: 7.79 | E9: 9.25 | F9: =IF($G$3="4Pt Proctor","",SMALL($B$3:$F$3,F8)) -> 10.9 | J9: 124.6499336 | K9: 4.48254 | L9: 4
A10: Y Values | B10: =HLOOKUP(B9,$B$3:$F$4,2,FALSE) -> 124.6 | C10: =HLOOKUP(C9,$B$3:$F$4,2,FALSE) -> 127.5 | D10: 129.8 | E10: 129.6 | F10: =IF($G$3="4Pt Proctor","",HLOOKUP(F9,$B$3:$F$4,2,FALSE)) -> 126 | J10: 124.6570667 | K10: 4.48576 | L10: 4
A11: hi = xi+1 − xi for i = 0, 1, 2, . . . | B11: =C9-B9 -> 1.4 | C11: =D9-C9 -> 1.93 | D11: 1.46 | E11: =IF($G$3="4Pt Proctor","",F9-E9) -> 1.65 | J11: 124.6641997 | K11: 4.48898 | L11: 4
J12: 124.6713325 | K12: 4.4922 | L12: 4
A13: Number of logical points: | B13: =IF(ISNUMBER(E11),5,IF(ISNUMBER(D11),4,IF(ISNUMBER(C11),3))) -> 5 | J13: 124.6784652 | K13: 4.49542 | L13: 4
A14: X Range: | B14: =ROUNDDOWN(B9,0) -> 4 | C14: =ROUNDUP(MAX(B9:F9),0) -> 11 | J14: 124.6855977 | K14: 4.49864 | L14: 4
J15: 124.69273 | K15: 4.50186 | L15: 4
B16: Matrix A | F16: Matrix m | G16: Matrix r | J16: 124.6998622 | K16: 4.50508 | L16: 4
A17: 4-Point Matrix Calculations | B17: 1 | C17: 0 | D17: 0 | E17: 0 | F17: =MMULT(MINVERSE(A_4Pt),R_4Pt) -> -4.709012074e-16 | G17: 0 | J17: 124.7069941 | K17: 4.5083 | L17: 4
B18: =B11 -> 1.4 | C18: =2*(B11+C11) -> 6.66 | D18: =C11 -> 1.93 | E18: 0 | F18: -0.492413847 | G18: =6*(((D10-C10)/C11)-((C10-B10)/B11)) -> -5.278312361 | J18: 124.7141259 | K18: 4.51152 | L18: 4
B19: 0 | C19: =C11 -> 1.93 | D19: =2*(C11+D11) -> 6.78 | E19: =D11 -> 1.46 | F19: -1.035666394 | G19: =6*(((E10-D10)/D11)-((D10-C10)/C11)) -> -7.972176876 | J19: 124.7212573 | K19: 4.51474 | L19: 4
B20: 0 | C20: 0 | D20: 0 | E20: 1 | F20: 0 | G20: 0 | J20: 124.7283886 | K20: 4.51796 | L20: 4
J21: 124.7355196 | K21: 4.52118 | L21: 4
A22: 4-Point Coefficients | B22: a | C22: b | D22: c | E22: d | J22: 124.7426503 | K22: 4.5244 | L22: 4
A23: Part 1 | B23: =B10 -> 124.6 | C23: =((C10-B10)/B11)-(B11/2)*F17-((B11/6)*(F18-F17)) -> 2.186325136 | D23: =F17/2 -> -2.354506037e-16 | E23: =(F18-F17)/(6*B11) -> -0.05862069607 | J23: 124.7497807 | K23: 4.52762 | L23: 4
A24: Part 2 | B24: =C10 -> 127.5 | C24: =((D10-C10)/C11)-(C11/2)*F18-((C11/6)*(F19-F18)) -> 1.841635443 | D24: =F18/2 -> -0.2462069235 | E24: =(F19-F18)/(6*C11) -> -0.0469130006 | J24: 124.7569108 | K24: 4.53084 | L24: 4
A25: Part 3 | B25: =D10 -> 129.8 | C25: =((E10-D10)/D11)-(D11/2)*F19-((D11/6)*(F20-F19)) -> 0.3670380103 | D25: =F19/2 -> -0.517833197 | E25: =(F20-F19)/(6*D11) -> 0.1182267573 | J25: 124.7640405 | K25: 4.53406 | L25: 4
J26: 124.77117 | K26: 4.53728 | L26: 4
A27: Equations | J27: 124.778299 | K27: 4.5405 | L27: 4
A28: Part 1 (Equation 1) | B28: =$B$23+$C$23*(X-$B$9)+$D$23*(X-$B$9)^2+$E$23*(X-$B$9)^3 | J28: 124.7854277 | K28: 4.54372 | L28: 4
A29: Part 2 (Equation 2) | B29: =$B$24+$C$24*(X-$C$9)+$D$24*(X-$C$9)^2+$E$24*(X-$C$9)^3 | J29: 124.7925561 | K29: 4.54694 | L29: 4
A30: Part 3 (Equation 3) | B30: =$B$25+$C$25*(X-$D$9)+$D$25*(X-$D$9)^2+$E$25*(X-$D$9)^3 | J30: 124.799684 | K30: 4.55016 | L30: 4
J31: 124.8068115 | K31: 4.55338 | L31: 4
J32: 124.8139386 | K32: 4.5566 | L32: 4
J33: 124.8210653 | K33: 4.55982 | L33: 4
A34: Maximum Density | B34: =MAX(J2:J3000) -> 130.0262051 | J34: 124.8281915 | K34: 4.56304 | L34: 4
A35: Optimum Moisture | B35: =VLOOKUP(B34,J2:L3000,2,FALSE) -> 8.4689 | J35: 124.8353172 | K35: 4.56626 | L35: 4
J36: 124.8424424 | K36: 4.56948 | L36: 4
A37: 5-Point Matrix Calculations | B37: 1 | C37: 0 | D37: 0 | E37: 0 | F37: 0 | G37: =MMULT(MINVERSE(A_5Pt),R_5Pt) -> -4.333838062e-16 | H37: 0 | J37: 124.8495672 | K37: 4.5727 | L37: =IF($G$3="4Pt Proctor",IF(K37<$C$9,1,IF(K37<$D$9,2,IF(K37<$E$9,3))),IF(K37<$C$9,4,IF(K37<$D$9,5,IF(K37<$E$9,6,7)))) -> 4
B38: =B11 -> 1.4 | C38: =2*(B11+C11) -> 6.66 | D38: =C11 -> 1.93 | E38: 0 | F38: 0 | G38: -0.6168949681 | H38: =6*(((D10-C10)/C11)-((C10-B10)/B11)) -> -5.278312361 | J38: 124.8566914 | K38: 4.57592 | L38: =IF($G$3="4Pt Proctor",IF(K38<$C$9,1,IF(K38<$D$9,2,IF(K38<$E$9,3))),IF(K38<$C$9,4,IF(K38<$D$9,5,IF(K38<$E$9,6,7)))) -> 4
B39: 0 | C39: =C11 -> 1.93 | D39: =2*(C11+D11) -> 6.78 | E39: =D11 -> 1.46 | F39: 0 | G39: -0.6061097792 | H39: =6*(((E10-D10)/D11)-((D10-C10)/C11)) -> -7.972176876 | J39: 124.8638151 | K39: 4.57914 | L39: 4
B40: 0 | C40: 0 | D40: =D11 -> 1.46 | E40: =2*(D11+E11) -> 6.22 | F40: =E11 -> 1.65 | G40: -1.830236496 | H40: =6*(((F10-E10)/E11)-((E10-D10)/D11)) -> -12.26899128 | J40: 124.8709382 | K40: 4.58236 | L40: 4
B41: 0 | C41: 0 | D41: 0 | E41: 0 | F41: 1 | G41: 0 | H41: 0 | J41: 124.8780608 | K41: 4.58558 | L41: 4
J42: 124.8851828 | K42: 4.5888 | L42: 4
A43: 5-Point Coefficients | B43: a | C43: b | D43: c | E43: d | J43: 124.8923043 | K43: 4.59202 | L43: 4
A44: Part 1 | B44: =B10 -> 124.6 | C44: =((C10-B10)/B11)-(B11/2)*G37-((B11/6)*(G38-G37)) -> 2.215370731 | D44: =G37/2 -> -2.166919031e-16 | E44: =(G38-G37)/(6*B11) -> -0.07343987715 | J44: 124.8994251 | K44: 4.59524 | L44: 4
A45: Part 2 | B45: =C10 -> 127.5 | C45: =((D10-C10)/C11)-(C11/2)*G38-((C11/6)*(G39-G38)) -> 1.783544253 | D45: =G38/2 -> -0.308447484 | E45: =(G39-G38)/(6*C11) -> 0.000931363459 | J45: 124.9065453 | K45: 4.59846 | L45: 4
A46: Part 3 | B46: =D10 -> 129.8 | C46: =((E10-D10)/D11)-(D11/2)*G39-((D11/6)*(G40-G39)) -> 0.6033446719 | D46: =G39/2 -> -0.3030548896 | E46: =(G40-G39)/(6*D11) -> -0.1397404928 | J46: 124.9136649 | K46: 4.60168 | L46: 4
A47: Part 4 | B47: =E10 -> 129.6 | C47: =((F10-E10)/E11)-(E11/2)*G40-((E11/6)*(G41-G40)) -> -1.175188109 | D47: =G40/2 -> -0.915118248 | E47: =(G41-G40)/(6*B14) -> 0.076259854 | J47: 124.9207838 | K47: 4.6049 | L47: 4
J48: 124.9279021 | K48: 4.60812 | L48: 4
A49: Equations | J49: 124.9350196 | K49: 4.61134 | L49: 4
A50: Part 1 (Equation 4) | B50: =$B$44+$C$44*(X-$B$9)+$D$44*(X-$B$9)^2+$E$44*(X-$B$9)^3 | J50: 124.9421365 | K50: 4.61456 | L50: 4
A51: Part 2 (Equation 5) | B51: =$B$45+$C$45*(X-$C$9)+$D$45*(X-$C$9)^2+$E$45*(X-$C$9)^3 | J51: 124.9492527 | K51: 4.61778 | L51: 4
A52: Part 3 (Equation 6) | B52: =$B$46+$C$46*(X-$D$9)+$D$46*(X-$D$9)^2+$E$46*(X-$D$9)^3 | J52: 124.9563682 | K52: 4.621 | L52: 4
A53: Part 4 (Equation 7) | B53: =$B$47+$C$47*(X-$E$9)+$D$47*(X-$E$9)^2+$E$47*(X-$E$9)^3 | J53: 124.9634829 | K53: 4.62422 | L53: 4
J54: 124.9705969 | K54: 4.62744 | L54: 4
J55: 124.9777101 | K55: 4.63066 | L55: 4
J56: 124.9848226 | K56: 4.63388 | L56: 4
J57: 124.9919342 | K57: 4.6371 | L57: 4
J58: 124.9990451 | K58: 4.64032 | L58: 4
J59: 125.0061551 | K59: 4.64354 | L59: 4
J60: 125.0132642 | K60: 4.64676 | L60: 4
J61: 125.0203726 | K61: 4.64998 | L61: 4
J62: 125.02748 | K62: 4.6532 | L62: 4
J63: 125.0345866 | K63: 4.65642 | L63: 4
J64: 125.0416923 | K64: 4.65964 | L64: 4
J65: 125.048797 | K65: 4.66286 | L65: 4
J66: 125.0559009 | K66: 4.66608 | L66: 4
J67: 125.0630037 | K67: 4.6693 | L67: 4
J68: =IF($G$3="4Pt Proctor",IF(K68<$C$9,$B$23+$C$23*(K68-$B$9)+$D$23*(K68-$B$9)^2+$E$23*(K68-$B$9)^3,IF(K68<$D$9,$B$24+$C$24*(K68-$C$9)+$D$24*(K68-$C$9)^2+$E$24*(K68-$C$9)^3,IF(K68<$E$9,$B$25+$C$25*(K68-$D$9)+$D$25*(K68-$D$9)^2+$E$25*(K68-$D$9)^3))),IF(K68<$C$9,$B$44+$C$44*(K68-$B$9)+$D$44*(K68-$B$9)^2+$E$44*(K68-$B$9)^3,IF(K68<$D$9,$B$45+$C$45*(K68-$C$9)+$D$45*(K68-$C$9)^2+$E$45*(K68-$C$9)^3,IF(K68<$E$9,$B$46+$C$46*(K68-$D$9)+$D$46*(K68-$D$9)^2+$E$46*(K68-$D$9)^3,$B$47+$C$47*(K68-$E$9)+$D$47*(K68-$E$9)^2+$E$47*(K68-$E$9)^3)))) -> 125.0701057 | K68: =IF($G$3="4Pt Proctor",IF(K67<$E$9,K67+$N$2,""),IF(K67<$F$9,K67+$N$2,"")) -> 4.67252 | L68: 4
J69: 125.0772066 | K69: 4.67574 | L69: 4
J70: 125.0843066 | K70: 4.67896 | L70: 4
J71: 125.0914056 | K71: 4.68218 | L71: 4
J72: 125.0985036 | K72: 4.6854 | L72: 4
J73: 125.1056005 | K73: 4.68862 | L73: 4
J74: 125.1126964 | K74: 4.69184 | L74: 4
J75: 125.1197912 | K75: 4.69506 | L75: 4
J76: 125.126885 | K76: 4.69828 | L76: 4
J77: 125.1339776 | K77: 4.7015 | L77: 4
J78: 125.1410692 | K78: 4.70472 | L78: 4
J79: 125.1481597 | K79: 4.70794 | L79: 4
J80: 125.155249 | K80: 4.71116 | L80: 4
J81: 125.1623371 | K81: 4.71438 | L81: 4
J82: 125.1694241 | K82: 4.7176 | L82: 4
J83: 125.17651 | K83: 4.72082 | L83: 4
J84: 125.1835946 | K84: 4.72404 | L84: 4
J85: 125.190678 | K85: 4.72726 | L85: 4
J86: 125.1977602 | K86: 4.73048 | L86: 4
J87: 125.2048412 | K87: 4.7337 | L87: 4
J88: 125.2119209 | K88: 4.73692 | L88: 4
J89: 125.2189994 | K89: 4.74014 | L89: 4
J90: 125.2260766 | K90: 4.74336 | L90: 4
J91: 125.2331524 | K91: 4.74658 | L91: 4
J92: 125.240227 | K92: 4.7498 | L92: 4
J93: 125.2473003 | K93: 4.75302 | L93: 4
J94: 125.2543722 | K94: 4.75624 | L94: 4
J95: 125.2614427 | K95: 4.75946 | L95: 4
J96: 125.2685119 | K96: 4.76268 | L96: 4
J97: 125.2755797 | K97: 4.7659 | L97: 4
J98: 125.2826461 | K98: 4.76912 | L98: 4
J99: 125.2897111 | K99: 4.77234 | L99: 4
J100: 125.2967747 | K100: 4.77556 | L100: 4
J101: 125.3038368 | K101: 4.77878 | L101: 4
J102: 125.3108975 | K102: 4.782 | L102: =IF($G$3="4Pt Proctor",IF(K102<$C$9,1,IF(K102<$D$9,2,IF(K102<$E$9,3))),IF(K102<$C$9,4,IF(K102<$D$9,5,IF(K102<$E$9,6,7)))) -> 4
J103: 125.3179567 | K103: 4.78522 | L103: 4
J104: 125.3250144 | K104: 4.78844 | L104: 4
J105: 125.3320706 | K105: 4.79166 | L105: 4
J106: 125.3391253 | K106: 4.79488 | L106: 4
J107: 125.3461785 | K107: 4.7981 | L107: 4
J108: 125.3532301 | K108: 4.80132 | L108: 4
J109: 125.3602802 | K109: 4.80454 | L109: 4
J110: 125.3673287 | K110: 4.80776 | L110: 4
J111: 125.3743756 | K111: 4.81098 | L111: 4
J112: 125.3814209 | K112: 4.8142 | L112: 4
J113: 125.3884645 | K113: 4.81742 | L113: 4
J114: 125.3955066 | K114: 4.82064 | L114: 4
J115: 125.402547 | K115: 4.82386 | L115: 4
J116: 125.4095857 | K116: 4.82708 | L116: 4
J117: 125.4166228 | K117: 4.8303 | L117: 4
J118: 125.4236581 | K118: 4.83352 | L118: 4
J119: 125.4306918 | K119: 4.83674 | L119: 4
J120: 125.4377237 | K120: 4.83996 | L120: 4
J121: 125.4447539 | K121: 4.84318 | L121: 4
J122: 125.4517824 | K122: 4.8464 | L122: 4
J123: 125.4588091 | K123: 4.84962 | L123: 4
J124: 125.465834 | K124: 4.85284 | L124: 4
J125: 125.4728571 | K125: 4.85606 | L125: 4
J126: 125.4798784 | K126: 4.85928 | L126: 4
J127: 125.4868979 | K127: 4.8625 | L127: 4
J128: 125.4939155 | K128: 4.86572 | L128: 4
J129: 125.5009313 | K129: 4.86894 | L129: 4
J130: 125.5079452 | K130: 4.87216 | L130: 4
J131: 125.5149573 | K131: 4.87538 | L131: 4
J132: =IF($G$3="4Pt Proctor",IF(K132<$C$9,$B$23+$C$23*(K132-$B$9)+$D$23*(K132-$B$9)^2+$E$23*(K132-$B$9)^3,IF(K132<$D$9,$B$24+$C$24*(K132-$C$9)+$D$24*(K132-$C$9)^2+$E$24*(K132-$C$9)^3,IF(K132<$E$9,$B$25+$C$25*(K132-$D$9)+$D$25*(K132-$D$9)^2+$E$25*(K132-$D$9)^3))),IF(K132<$C$9,$B$44+$C$44*(K132-$B$9)+$D$44*(K132-$B$9)^2+$E$44*(K132-$B$9)^3,IF(K132<$D$9,$B$45+$C$45*(K132-$C$9)+$D$45*(K132-$C$9)^2+$E$45*(K132-$C$9)^3,IF(K132<$E$9,$B$46+$C$46*(K132-$D$9)+$D$46*(K132-$D$9)^2+$E$46*(K132-$D$9)^3,$B$47+$C$47*(K132-$E$9)+$D$47*(K132-$E$9)^2+$E$47*(K132-$E$9)^3)))) -> 125.5219674 | K132: =IF($G$3="4Pt Proctor",IF(K131<$E$9,K131+$N$2,""),IF(K131<$F$9,K131+$N$2,"")) -> 4.8786 | L132: 4
J133: 125.5289756 | K133: 4.88182 | L133: 4
J134: 125.5359819 | K134: 4.88504 | L134: 4
J135: 125.5429863 | K135: 4.88826 | L135: 4
J136: 125.5499887 | K136: 4.89148 | L136: 4
J137: 125.5569891 | K137: 4.8947 | L137: 4
J138: 125.5639875 | K138: 4.89792 | L138: 4
J139: 125.570984 | K139: 4.90114 | L139: 4
J140: 125.5779784 | K140: 4.90436 | L140: 4
J141: 125.5849708 | K141: 4.90758 | L141: 4
J142: 125.5919612 | K142: 4.9108 | L142: 4
J143: 125.5989495 | K143: 4.91402 | L143: 4
J144: 125.6059357 | K144: 4.91724 | L144: 4
J145: 125.6129198 | K145: 4.92046 | L145: 4
J146: 125.6199018 | K146: 4.92368 | L146: 4
J147: 125.6268817 | K147: 4.9269 | L147: 4
J148: 125.6338595 | K148: 4.93012 | L148: 4
J149: 125.6408351 | K149: 4.93334 | L149: 4
J150: 125.6478086 | K150: 4.93656 | L150: 4
J151: 125.6547799 | K151: 4.93978 | L151: 4
J152: 125.661749 | K152: 4.943 | L152: 4
J153: 125.6687158 | K153: 4.94622 | L153: 4
J154: 125.6756805 | K154: 4.94944 | L154: 4
J155: 125.6826429 | K155: 4.95266 | L155: 4
J156: 125.6896031 | K156: 4.95588 | L156: 4
J157: 125.696561 | K157: 4.9591 | L157: 4
J158: 125.7035167 | K158: 4.96232 | L158: 4
J159: 125.71047 | K159: 4.96554 | L159: 4
J160: 125.717421 | K160: 4.96876 | L160: 4
J161: 125.7243697 | K161: 4.97198 | L161: 4
J162: 125.7313161 | K162: 4.9752 | L162: 4
J163: 125.7382601 | K163: 4.97842 | L163: 4
J164: 125.7452017 | K164: 4.98164 | L164: 4
J165: 125.752141 | K165: 4.98486 | L165: 4
J166: 125.7590779 | K166: 4.98808 | L166: =IF($G$3="4Pt Proctor",IF(K166<$C$9,1,IF(K166<$D$9,2,IF(K166<$E$9,3))),IF(K166<$C$9,4,IF(K166<$D$9,5,IF(K166<$E$9,6,7)))) -> 4
J167: 125.7660123 | K167: 4.9913 | L167: 4
J168: 125.7729443 | K168: 4.99452 | L168: 4
J169: 125.7798739 | K169: 4.99774 | L169: 4
J170: 125.786801 | K170: 5.00096 | L170: 4
J171: 125.7937257 | K171: 5.00418 | L171: 4
J172: 125.8006478 | K172: 5.0074 | L172: 4
J173: 125.8075675 | K173: 5.01062 | L173: 4
J174: 125.8144847 | K174: 5.01384 | L174: 4
J175: 125.8213993 | K175: 5.01706 | L175: 4
J176: 125.8283113 | K176: 5.02028 | L176: 4
J177: 125.8352209 | K177: 5.0235 | L177: 4
J178: 125.8421278 | K178: 5.02672 | L178: 4
J179: 125.8490321 | K179: 5.02994 | L179: 4
J180: 125.8559339 | K180: 5.03316 | L180: 4
J181: 125.862833 | K181: 5.03638 | L181: 4
J182: 125.8697295 | K182: 5.0396 | L182: 4
J183: 125.8766233 | K183: 5.04282 | L183: 4
J184: 125.8835145 | K184: 5.04604 | L184: 4
J185: 125.890403 | K185: 5.04926 | L185: 4
J186: 125.8972888 | K186: 5.05248 | L186: 4
J187: 125.9041719 | K187: 5.0557 | L187: 4
J188: 125.9110523 | K188: 5.05892 | L188: 4
J189: 125.91793 | K189: 5.06214 | L189: 4
J190: 125.9248049 | K190: 5.06536 | L190: 4
J191: 125.931677 | K191: 5.06858 | L191: 4
J192: 125.9385464 | K192: 5.0718 | L192: 4
J193: 125.9454129 | K193: 5.07502 | L193: 4
J194: 125.9522767 | K194: 5.07824 | L194: 4
J195: 125.9591376 | K195: 5.08146 | L195: 4
J196: =IF($G$3="4Pt Proctor",IF(K196<$C$9,$B$23+$C$23*(K196-$B$9)+$D$23*(K196-$B$9)^2+$E$23*(K196-$B$9)^3,IF(K196<$D$9,$B$24+$C$24*(K196-$C$9)+$D$24*(K196-$C$9)^2+$E$24*(K196-$C$9)^3,IF(K196<$E$9,$B$25+$C$25*(K196-$D$9)+$D$25*(K196-$D$9)^2+$E$25*(K196-$D$9)^3))),IF(K196<$C$9,$B$44+$C$44*(K196-$B$9)+$D$44*(K196-$B$9)^2+$E$44*(K196-$B$9)^3,IF(K196<$D$9,$B$45+$C$45*(K196-$C$9)+$D$45*(K196-$C$9)^2+$E$45*(K196-$C$9)^3,IF(K196<$E$9,$B$46+$C$46*(K196-$D$9)+$D$46*(K196-$D$9)^2+$E$46*(K196-$D$9)^3,$B$47+$C$47*(K196-$E$9)+$D$47*(K196-$E$9)^2+$E$47*(K196-$E$9)^3)))) -> 125.9659957 | K196: =IF($G$3="4Pt Proctor",IF(K195<$E$9,K195+$N$2,""),IF(K195<$F$9,K195+$N$2,"")) -> 5.08468 | L196: 4
J197: 125.9728509 | K197: 5.0879 | L197: 4
J198: 125.9797032 | K198: 5.09112 | L198: 4
J199: 125.9865527 | K199: 5.09434 | L199: 4
J200: 125.9933993 | K200: 5.09756 | L200: 4
... 1802 more rows
